Workbook

Sheet rok1
K1: WYKŁADY | M1: PL | N1: RO | O1: PO
I2: 1 | K2: Matematyka W | L2: dr B. Milówka | M2: 15 | N2: =SUMIF(K$36:K$275,K2,I$36:I$275) -> 15 | O2: =IF(M2=N2,"",M2-N2) -> 
I3: 2 | K3: Mikroekonomia W | L3: dr B. Puzio-Wacławik | M3: 15 | N3: 15
I4: 3 | K4: Ekonomia integracji europejskiej W | L4: prof. Cz. Nowak | M4: 10 | N4: 10 | AE4: Zakładamy 1 grupę ćwiczeniową i 2 labor.
I5: 4 | K5: Gospodarka regionalna W | L5: prof. Cz. Nowak | M5: 10 | N5: 10
I6: 5 | K6: Geografia ekonomiczna W | L6: prof. Cz. Nowak | M6: 10 | N6: 10
I7: 6 | K7: Podstawy marketingu W | L7: Mgr B. Partyńska Brzegowy | M7: 10 | N7: 10
I8: 7 | K8: Podstawy agrobiznesu W | L8: Mgr B. Partyńska Brzegowy | M8: 10 | N8: 10
I9: 8 | N9: 0
I10: 9 | N10: 0
I11: 10 | N11: 0
I12: 11 | N12: 0
I13: 12 | N13: 0
I14: 13 | N14: 0
I15: 14 | N15: 0
I16: 15 | N16: 0 | AA16: =IF(Y16=Z16,"",Y16-Z16) -> 
K17: ĆWICZENIA I GR | M17: =SUM(M2:M16) -> 80 | N17: =SUM(N2:N16) -> 80 | O17: =SUM(O2:O16) -> 0 | W17: ĆWICZENIA II GR | Y17: PL | Z17: RO | AA17: PO
I18: 1 | K18: Matematyka Ćw | L18: dr B. Milówka | M18: 15 | N18: =SUMIF(K$36:K$275,K18,I$36:I$275) -> 15 | O18: =IF(M18=N18,"",M18-N18) ->  | U18: 1 | Z18: =SUMIF(W$36:W$275,W18,U$36:U$275) -> 0 | AA18: =IF(Y18=Z18,"",Y18-Z18) -> 
I19: 2 | K19: Mikroekonomia Ćw | L19: dr B. Puzio-Wacławik | M19: 20 | N19: 20 | U19: 2 | Z19: 0
I20: 3 | K20: Ekonomia integracji europejskiej Ćw | L20: prof. Cz. Nowak | M20: 15 | N20: 15 | U20: 3 | Z20: 0
I21: 4 | K21: Gospodarka regionalna Ćw | L21: prof. Cz. Nowak | M21: 15 | N21: 15 | U21: 4 | Z21: 0
I22: 5 | K22: Geografia ekonomiczna Ćw | L22: prof. Cz. Nowak | M22: 10 | N22: 10 | U22: 5 | Z22: 0
I23: 6 | K23: Podstawy marketingu Ćw | L23: Mgr B. Partyńska Bregowy | M23: 10 | N23: 10 | U23: 6 | Z23: 0
I24: 7 | K24: Podstawy geografii turystycznej Ćw | L24: mgr M. Bugaj | M24: 15 | N24: 15 | U24: 7 | Z24: 0
I25: 8 | K25: Podstawy agrobiznesu Ćw | L25: Mgr B. Partyńska Brzegowy | M25: 10 | N25: 10 | U25: 8 | Z25: 0
I26: 9 | K26: Informatyka L1 | L26: Mgr M. Bydłosz | M26: 30 | N26: 30 | O26: =IF(M26=N26,"",M26-N26) ->  | U26: 9 | Z26: 0
I27: 10 | K27: Informatyka L2 | L27: Mgr M. Bydłosz | M27: 30 | N27: 30 | U27: 10 | Z27: 0
I28: 11 | N28: 0 | U28: 11 | Z28: 0
I29: 12 | N29: 0 | U29: 12 | Z29: 0
I30: 13 | N30: 0 | U30: 13 | Z30: 0
I31: 14 | N31: 0 | U31: 14 | Z31: 0
I32: 15 | N32: 0 | U32: 15 | Z32: 0
C33: III r. 1 gr. | D33: ! ! ! | F33: =I33-N34 -> 0 | I33: =SUM(I36:I275) -> 250 | M33: =SUM(M18:M32) -> 170 | N33: =SUM(N18:N32) -> 170 | O33: =SUM(O18:O32) -> 0 | P33: ! ! ! | R33: =U33-Z33 -> 0 | U33: =SUM(U36:U275) -> 0 | Y33: =SUM(Y2:Y32) -> 0 | Z33: =SUM(Z2:Z32) -> 0
C34: III r. 2 gr. | L34: wykł+ćw | M34: =M17+M33 -> 250 | N34: =N17+N33 -> 250 | O34: =O17+O33 -> 0
A35: ZJ. | B35: DZIEŃ | C35: DATA | D35: POCZ | F35: KON | G35: & | H35: cz trw | I35: G | K35: PRZEDMIOT | L35: WYKŁADOWCA | M35: SALA | P35: POCZ | R35: KON | S35: & | T35: cz trw | U35: G | W35: PRZEDMIOT | X35: WYKŁADOWCA | Y35: SALA
A36: 1 | B36: Pt | C36: 2018-10-05 | D36: 16:30:00 | F36: =IF(I36<>0,D36+H36,"") -> 20:15:00 | G36: 00:45:00 | H36: =G36*I36 -> 03:45:00 | I36: 5 | K36: Mikroekonomia W | L36: dr B. Puzio-Wacławik | M36: A104 | Q36: =IF(U36<>0,"-","") ->  | R36: =IF(U36<>0,P36+T36,"") ->  | S36: 00:45:00 | T36: =S36*U36 -> 00:00:00 | AB36: =L36&X36 -> dr B. Puzio-Wacławik | AC36: =I36+U36 -> 5
A37: =A36 -> 1 | B37: Pt | C37: =C36 -> 2018-10-05 | F37: =IF(I37<>0,D37+H37,"") ->  | G37: 00:45:00 | H37: =G37*I37 -> 00:00:00 | S37: 00:45:00 | T37: 00:00:00 | AC37: 0
A38: 1 | B38: Pt | C38: =C37 -> 2018-10-05 | E38: =IF(I38<>0,"-","") ->  | G38: 00:45:00 | H38: 00:00:00 | S38: 00:45:00 | T38: 00:00:00 | AC38: 0
A39: 1 | B39: Pt | C39: =C38 -> 2018-10-05 | G39: 00:45:00 | H39: 00:00:00 | S39: 00:45:00 | T39: 00:00:00 | AC39: 0
A40: 1 | B40: Pt | C40: =C39 -> 2018-10-05 | G40: 00:45:00 | H40: =G40*I40 -> 00:00:00 | S40: 00:45:00 | T40: 00:00:00 | AC40: 0
A41: 1 | B41: So | C41: =C40+1 -> 2018-10-06 | D41: 08:30:00 | F41: 11:30:00 | G41: 00:45:00 | H41: 03:00:00 | I41: 4 | K41: Podstawy marketingu W | L41: Mgr B. Partyńska Brzegowy | M41: A104 | S41: 00:45:00 | T41: 00:00:00 | AB41: Mgr B. Partyńska Brzegowy | AC41: 4
A42: 1 | B42: So | C42: =C41 -> 2018-10-06 | D42: 11:45:00 | F42: 14:45:00 | G42: 00:45:00 | H42: 03:00:00 | I42: 4 | K42: Podstawy marketingu Ćw | L42: Mgr B. Partyńska Bregowy | M42: A104 | S42: 00:45:00 | T42: 00:00:00 | AB42: Mgr B. Partyńska Bregowy | AC42: 4
A43: 1 | B43: So | C43: =C42 -> 2018-10-06 | D43: 15:15:00 | E43: - | F43: 16:45:00 | G43: 00:45:00 | H43: 01:30:00 | I43: 2 | K43: Matematyka W | L43: dr B. Milówka | M43: A104 | S43: 00:45:00 | T43: 00:00:00 | AB43: dr B. Milówka | AC43: 2
A44: 1 | B44: So | C44: =C43 -> 2018-10-06 | D44: 17:00:00 | E44: - | F44: 18:30:00 | G44: 00:45:00 | H44: 01:30:00 | I44: 2 | K44: Matematyka Ćw | L44: dr B. Milówka | M44: A104 | S44: 00:45:00 | T44: 00:00:00 | AB44: dr B. Milówka | AC44: 2
A45: 1 | B45: So | C45: =C44 -> 2018-10-06 | G45: 00:45:00 | H45: 00:00:00 | S45: 00:45:00 | T45: 00:00:00 | AC45: 0
A46: 1 | B46: Nd | C46: =C45+1 -> 2018-10-07 | D46: 08:30:00 | E46: - | F46: 11:30:00 | G46: 00:45:00 | H46: 03:00:00 | I46: 4 | K46: Ekonomia integracji europejskiej W | L46: prof. Cz. Nowak | M46: A104 | S46: 00:45:00 | T46: 00:00:00 | AB46: prof. Cz. Nowak | AC46: 4
A47: 1 | B47: Nd | C47: =C46 -> 2018-10-07 | D47: 11:45:00 | E47: - | F47: 15:30:00 | G47: 00:45:00 | H47: 03:45:00 | I47: 5 | K47: Ekonomia integracji europejskiej Ćw | L47: prof. Cz. Nowak | M47: A104 | S47: 00:45:00 | T47: 00:00:00 | AB47: prof. Cz. Nowak | AC47: 5
A48: 1 | B48: Nd | C48: =C47 -> 2018-10-07 | G48: 00:45:00 | H48: 00:00:00 | S48: 00:45:00 | T48: 00:00:00 | AC48: 0
A49: 1 | B49: Nd | C49: =C48 -> 2018-10-07 | G49: 00:45:00 | H49: 00:00:00 | S49: 00:45:00 | T49: 00:00:00 | AC49: 0
A50: 1 | B50: Nd | C50: =C49 -> 2018-10-07 | G50: 00:45:00 | H50: 00:00:00 | S50: 00:45:00 | T50: 00:00:00 | AC50: 0
A51: 2 | B51: Pt | C51: =C36+7 -> 2018-10-12 | E51: =IF(I51<>0,"-","") ->  | F51: =IF(I51<>0,D51+H51,"") ->  | G51: 00:45:00 | H51: =G51*I51 -> 00:00:00 | S51: 00:45:00 | T51: 00:00:00 | AC51: =I66+U51 -> 5
A52: =A51 -> 2 | B52: Pt | C52: =C51 -> 2018-10-12 | E52: =IF(I52<>0,"-","") ->  | F52: =IF(I52<>0,D52+H52,"") ->  | G52: 00:45:00 | H52: =G52*I52 -> 00:00:00 | S52: 00:45:00 | T52: 00:00:00 | AC52: =I67+U52 -> 0
A53: 2 | B53: Pt | C53: =C52 -> 2018-10-12 | E53: =IF(I53<>0,"-","") ->  | F53: =IF(I53<>0,D53+H53,"") ->  | G53: 00:45:00 | H53: =G53*I53 -> 00:00:00 | S53: 00:45:00 | T53: 00:00:00 | AC53: 0
A54: 2 | B54: Pt | C54: =C53 -> 2018-10-12 | E54: =IF(I54<>0,"-","") ->  | F54: =IF(I54<>0,D54+H54,"") ->  | G54: 00:45:00 | H54: =G54*I54 -> 00:00:00 | S54: 00:45:00 | T54: 00:00:00 | AC54: 0
A55: 2 | B55: Pt | C55: =C54 -> 2018-10-12 | G55: 00:45:00 | H55: 00:00:00 | S55: 00:45:00 | T55: 00:00:00 | AC55: 0
A56: 2 | B56: So | C56: =C55+1 -> 2018-10-13 | G56: 00:45:00 | H56: 00:00:00 | S56: 00:45:00 | T56: 00:00:00 | AC56: 0
A57: 2 | B57: So | C57: =C56 -> 2018-10-13 | E57: =IF(I57<>0,"-","") ->  | F57: =IF(I57<>0,D57+H57,"") ->  | G57: 00:45:00 | H57: =G57*I57 -> 00:00:00 | S57: 00:45:00 | T57: 00:00:00 | AC57: 0
A58: 2 | B58: So | C58: =C57 -> 2018-10-13 | G58: 00:45:00 | H58: 00:00:00 | S58: 00:45:00 | T58: 00:00:00 | AC58: 0
A59: 2 | B59: So | C59: =C58 -> 2018-10-13 | G59: 00:45:00 | H59: 00:00:00 | S59: 00:45:00 | T59: 00:00:00 | AC59: 0
A60: 2 | B60: So | C60: =C59 -> 2018-10-13 | G60: 00:45:00 | H60: 00:00:00 | S60: 00:45:00 | T60: 00:00:00 | AC60: 0
A61: 2 | B61: Nd | C61: =C60+1 -> 2018-10-14 | G61: 00:45:00 | H61: 00:00:00 | S61: 00:45:00 | T61: 00:00:00 | AC61: 0
A62: 2 | B62: Nd | C62: =C61 -> 2018-10-14 | G62: 00:45:00 | H62: 00:00:00 | S62: 00:45:00 | T62: 00:00:00 | AC62: 0
A63: 2 | B63: Nd | C63: =C62 -> 2018-10-14 | G63: 00:45:00 | H63: 00:00:00 | S63: 00:45:00 | T63: 00:00:00 | AC63: 0
A64: 2 | B64: Nd | C64: =C63 -> 2018-10-14 | G64: 00:45:00 | H64: 00:00:00 | S64: 00:45:00 | T64: 00:00:00 | AC64: 0
A65: 2 | B65: Nd | C65: =C64 -> 2018-10-14 | G65: 00:45:00 | H65: 00:00:00 | S65: 00:45:00 | T65: 00:00:00 | AC65: 0
A66: 3 | B66: Pt | C66: =C51+7 -> 2018-10-19 | D66: 16:30:00 | E66: =IF(I66<>0,"-","") -> - | F66: =IF(I66<>0,D66+H66,"") -> 20:15:00 | G66: 00:45:00 | H66: =G66*I66 -> 03:45:00 | I66: 5 | K66: Mikroekonomia Ćw | L66: dr B. Puzio-Wacławik | M66: A104 | S66: 00:45:00 | T66: 00:00:00 | AB66: dr B. Puzio-Wacławik | AC66: 5
A67: =A66 -> 3 | B67: Pt | C67: =C66 -> 2018-10-19 | E67: =IF(I67<>0,"-","") ->  | F67: =IF(I67<>0,D67+H67,"") ->  | G67: 00:45:00 | H67: =G67*I67 -> 00:00:00 | S67: 00:45:00 | T67: 00:00:00 | AC67: 0
A68: 3 | B68: Pt | C68: =C67 -> 2018-10-19 | G68: 00:45:00 | H68: 00:00:00 | S68: 00:45:00 | T68: 00:00:00 | AC68: 0
A69: 3 | B69: Pt | C69: =C68 -> 2018-10-19 | G69: 00:45:00 | H69: 00:00:00 | S69: 00:45:00 | T69: 00:00:00 | AC69: 0
A70: 3 | B70: Pt | C70: =C69 -> 2018-10-19 | G70: 00:45:00 | H70: 00:00:00 | S70: 00:45:00 | T70: 00:00:00 | AC70: 0
A71: 3 | B71: So | C71: =C70+1 -> 2018-10-20 | D71: 08:30:00 | F71: =IF(I71<>0,D71+H71,"") -> 11:30:00 | G71: 00:45:00 | H71: 03:00:00 | I71: 4 | K71: Podstawy agrobiznesu W | L71: Mgr B. Partyńska Brzegowy | M71: A104 | S71: 00:45:00 | T71: 00:00:00 | AB71: Mgr B. Partyńska Brzegowy | AC71: 4
A72: 3 | B72: So | C72: =C71 -> 2018-10-20 | D72: 11:45:00 | F72: =IF(I72<>0,D72+H72,"") -> 14:00:00 | G72: 00:45:00 | H72: 02:15:00 | I72: 3 | K72: Podstawy agrobiznesu Ćw | L72: Mgr B. Partyńska Brzegowy | M72: A104 | S72: 00:45:00 | T72: 00:00:00 | AB72: Mgr B. Partyńska Brzegowy | AC72: 3
A73: 3 | B73: So | C73: =C72 -> 2018-10-20 | D73: 14:45:00 | E73: =IF(I73<>0,"-","") -> - | F73: =IF(I73<>0,D73+H73,"") -> 16:15:00 | G73: 00:45:00 | H73: 01:30:00 | I73: 2 | K73: Matematyka W | L73: dr B. Milówka | M73: A104 | S73: 00:45:00 | T73: 00:00:00 | AB73: dr B. Milówka | AC73: 2
A74: 3 | B74: So | C74: =C73 -> 2018-10-20 | D74: 16:30:00 | E74: =IF(I74<>0,"-","") -> - | F74: =IF(I74<>0,D74+H74,"") -> 18:00:00 | G74: 00:45:00 | H74: 01:30:00 | I74: 2 | K74: Matematyka Ćw | L74: dr B. Milówka | M74: A104 | S74: 00:45:00 | T74: 00:00:00 | AB74: dr B. Milówka | AC74: 2
A75: 3 | B75: So | C75: =C74 -> 2018-10-20 | G75: 00:45:00 | H75: 00:00:00 | S75: 00:45:00 | T75: 00:00:00 | AC75: 0
A76: 3 | B76: Nd | C76: =C75+1 -> 2018-10-21 | D76: 08:30:00 | E76: =IF(I76<>0,"-","") -> - | F76: =IF(I76<>0,D76+H76,"") -> 11:30:00 | G76: 00:45:00 | H76: =G76*I76 -> 03:00:00 | I76: 4 | K76: Gospodarka regionalna W | L76: prof. Cz. Nowak | M76: A104 | S76: 00:45:00 | T76: 00:00:00 | AB76: prof. Cz. Nowak | AC76: 4
A77: 3 | B77: Nd | C77: =C76 -> 2018-10-21 | D77: 11:45:00 | E77: =IF(I77<>0,"-","") -> - | F77: =IF(I77<>0,D77+H77,"") -> 15:30:00 | G77: 00:45:00 | H77: =G77*I77 -> 03:45:00 | I77: 5 | K77: Gospodarka regionalna Ćw | L77: prof. Cz. Nowak | M77: A104 | S77: 00:45:00 | T77: 00:00:00 | AB77: prof. Cz. Nowak | AC77: 5
A78: 3 | B78: Nd | C78: =C77 -> 2018-10-21 | D78: 15:45:00 | E78: - | F78: 19:30:00 | G78: 00:45:00 | H78: 03:45:00 | I78: 5 | K78: Informatyka L2 | L78: Mgr M. Bydłosz | M78: D104 | S78: 00:45:00 | T78: 00:00:00 | AB78: Mgr M. Bydłosz | AC78: 5
A79: 3 | B79: Nd | C79: =C78 -> 2018-10-21 | G79: 00:45:00 | H79: 00:00:00 | S79: 00:45:00 | T79: 00:00:00 | AC79: 0
A80: 3 | B80: Nd | C80: =C79 -> 2018-10-21 | G80: 00:45:00 | H80: 00:00:00 | S80: 00:45:00 | T80: 00:00:00 | AC80: 0
A81: 4 | B81: Pt | C81: =C66+7 -> 2018-10-26 | D81: 16:30:00 | E81: - | F81: 18:45:00 | G81: 00:45:00 | H81: 02:15:00 | I81: 3 | K81: Mikroekonomia W | L81: dr B. Puzio-Wacławik | M81: A104 | S81: 00:45:00 | T81: 00:00:00 | AB81: dr B. Puzio-Wacławik | AC81: 3
A82: =A81 -> 4 | B82: Pt | C82: =C81 -> 2018-10-26 | D82: 18:45:00 | E82: - | F82: 20:15:00 | G82: 00:45:00 | H82: 01:30:00 | I82: 2 | K82: Mikroekonomia Ćw | L82: dr B. Puzio-Wacławik | M82: A104 | S82: 00:45:00 | T82: 00:00:00 | AB82: dr B. Puzio-Wacławik | AC82: 2
A83: 4 | B83: Pt | C83: =C82 -> 2018-10-26 | G83: 00:45:00 | H83: 00:00:00 | S83: 00:45:00 | T83: 00:00:00 | AC83: 0
A84: 4 | B84: Pt | C84: =C83 -> 2018-10-26 | G84: 00:45:00 | H84: 00:00:00 | S84: 00:45:00 | T84: 00:00:00 | AC84: 0
A85: 4 | B85: Pt | C85: =C84 -> 2018-10-26 | G85: 00:45:00 | H85: 00:00:00 | S85: 00:45:00 | T85: 00:00:00 | AC85: 0
A86: 4 | B86: So | C86: =C85+1 -> 2018-10-27 | D86: 08:30:00 | E86: - | F86: 12:15:00 | G86: 00:45:00 | H86: 03:45:00 | I86: 5 | K86: Podstawy geografii turystycznej Ćw | L86: mgr M. Bugaj | M86: A104 | S86: 00:45:00 | T86: 00:00:00 | AB86: mgr M. Bugaj | AC86: 5
A87: 4 | B87: So | C87: =C86 -> 2018-10-27 | D87: 13:00:00 | E87: - | F87: 16:45:00 | G87: 00:45:00 | H87: 03:45:00 | I87: 5 | K87: Informatyka L1 | L87: Mgr M. Bydłosz | M87: D104 | S87: 00:45:00 | T87: 00:00:00 | AB87: Mgr M. Bydłosz | AC87: 5
A88: 4 | B88: So | C88: =C87 -> 2018-10-27 | S88: 00:45:00 | T88: 00:00:00 | AC88: 0
A89: 4 | B89: So | C89: =C88 -> 2018-10-27 | G89: 00:45:00 | H89: 00:00:00 | S89: 00:45:00 | T89: 00:00:00 | AC89: 0
A90: 4 | B90: So | C90: =C89 -> 2018-10-27 | G90: 00:45:00 | H90: 00:00:00 | S90: 00:45:00 | T90: 00:00:00 | AC90: 0
A91: 4 | B91: Nd | C91: =C90+1 -> 2018-10-28 | D91: 08:30:00 | E91: =IF(I91<>0,"-","") -> - | F91: =IF(I91<>0,D91+H91,"") -> 12:15:00 | G91: 00:45:00 | H91: =G91*I91 -> 03:45:00 | I91: 5 | K91: Geografia ekonomiczna W | L91: prof. Cz. Nowak | M91: A104 | S91: 00:45:00 | T91: 00:00:00 | AB91: prof. Cz. Nowak | AC91: 5
A92: 4 | B92: Nd | C92: =C91 -> 2018-10-28 | D92: 12:30:00 | E92: =IF(I92<>0,"-","") -> - | F92: =IF(I92<>0,D92+H92,"") -> 16:15:00 | G92: 00:45:00 | H92: =G92*I92 -> 03:45:00 | I92: 5 | K92: Geografia ekonomiczna Ćw | L92: prof. Cz. Nowak | M92: A104 | S92: 00:45:00 | T92: 00:00:00 | AB92: prof. Cz. Nowak | AC92: 5
A93: 4 | B93: Nd | C93: =C92 -> 2018-10-28 | G93: 00:45:00 | H93: 00:00:00 | S93: 00:45:00 | T93: 00:00:00 | AC93: 0
A94: 4 | B94: Nd | C94: =C93 -> 2018-10-28 | G94: 00:45:00 | H94: 00:00:00 | S94: 00:45:00 | T94: 00:00:00 | AC94: 0
A95: 4 | B95: Nd | C95: =C94 -> 2018-10-28 | G95: 00:45:00 | H95: 00:00:00 | S95: 00:45:00 | T95: 00:00:00 | AC95: 0
A96: 5 | B96: Pt | C96: 2018-11-02 | S96: 00:45:00 | T96: 00:00:00 | AC96: 0
A97: =A96 -> 5 | B97: Pt | C97: =C96 -> 2018-11-02 | S97: 00:45:00 | T97: 00:00:00 | AC97: 0
A98: 5 | B98: Pt | C98: =C97 -> 2018-11-02 | S98: 00:45:00 | T98: 00:00:00 | AC98: 0
A99: 5 | B99: Pt | C99: =C98 -> 2018-11-02 | G99: 00:45:00 | H99: 00:00:00 | S99: 00:45:00 | T99: 00:00:00 | AC99: 0
A100: 5 | B100: Pt | C100: =C99 -> 2018-11-02 | E100: =IF(I100<>0,"-","") ->  | F100: =IF(I100<>0,D100+H100,"") ->  | G100: 00:45:00 | H100: =G100*I100 -> 00:00:00 | Q100: =IF(U100<>0,"-","") ->  | R100: =IF(U100<>0,P100+T100,"") ->  | S100: 00:45:00 | T100: =S100*U100 -> 00:00:00 | AB100: =L100&X100 ->  | AC100: =I100+U100 -> 0
A101: 5 | B101: So | C101: =C100+1 -> 2018-11-03 | G101: 00:45:00 | H101: 00:00:00 | S101: 00:45:00 | T101: 00:00:00 | AC101: 0
A102: 5 | B102: So | C102: =C101 -> 2018-11-03 | G102: 00:45:00 | H102: 00:00:00 | S102: 00:45:00 | T102: 00:00:00 | AC102: 0
A103: 5 | B103: So | C103: =C102 -> 2018-11-03 | G103: 00:45:00 | H103: 00:00:00 | S103: 00:45:00 | T103: 00:00:00 | AC103: 0
A104: 5 | B104: So | C104: =C103 -> 2018-11-03 | G104: 00:45:00 | H104: 00:00:00 | S104: 00:45:00 | T104: 00:00:00 | AC104: 0
A105: 5 | B105: So | C105: =C104 -> 2018-11-03 | G105: 00:45:00 | H105: 00:00:00 | S105: 00:45:00 | T105: 00:00:00 | AC105: 0
A106: 5 | B106: Nd | C106: =C105+1 -> 2018-11-04 | G106: 00:45:00 | H106: 00:00:00 | S106: 00:45:00 | T106: 00:00:00 | AC106: 0
A107: 5 | B107: Nd | C107: =C106 -> 2018-11-04 | G107: 00:45:00 | H107: 00:00:00 | S107: 00:45:00 | T107: 00:00:00 | AC107: 0
A108: 5 | B108: Nd | C108: =C107 -> 2018-11-04 | G108: 00:45:00 | H108: 00:00:00 | S108: 00:45:00 | T108: 00:00:00 | AC108: 0
A109: 5 | B109: Nd | C109: =C108 -> 2018-11-04 | G109: 00:45:00 | H109: 00:00:00 | S109: 00:45:00 | T109: 00:00:00 | AC109: 0
A110: 5 | B110: Nd | C110: =C109 -> 2018-11-04 | G110: 00:45:00 | H110: 00:00:00 | S110: 00:45:00 | T110: 00:00:00 | AC110: 0
A111: 6 | B111: Pt | C111: 2018-11-09 | G111: 00:45:00 | H111: 00:00:00 | S111: 00:45:00 | T111: 00:00:00 | AC111: 0
A112: =A111 -> 6 | B112: Pt | C112: =C111 -> 2018-11-09 | G112: 00:45:00 | H112: 00:00:00 | S112: 00:45:00 | T112: 00:00:00 | AC112: 0
A113: 6 | B113: Pt | C113: =C112 -> 2018-11-09 | G113: 00:45:00 | H113: 00:00:00 | S113: 00:45:00 | T113: 00:00:00 | AC113: 0
A114: 6 | B114: Pt | C114: =C113 -> 2018-11-09 | G114: 00:45:00 | H114: 00:00:00 | S114: 00:45:00 | T114: 00:00:00 | AC114: 0
A115: 6 | B115: Pt | C115: =C114 -> 2018-11-09 | G115: 00:45:00 | H115: 00:00:00 | S115: 00:45:00 | T115: 00:00:00 | AC115: 0
A116: 6 | B116: So | C116: =C115+1 -> 2018-11-10 | G116: 00:45:00 | H116: 00:00:00 | S116: 00:45:00 | T116: 00:00:00 | AC116: 0
A117: 6 | B117: So | C117: =C116 -> 2018-11-10 | G117: 00:45:00 | H117: 00:00:00 | S117: 00:45:00 | T117: 00:00:00 | AC117: 0
A118: 6 | B118: So | C118: =C117 -> 2018-11-10 | G118: 00:45:00 | H118: 00:00:00 | S118: 00:45:00 | T118: 00:00:00 | AC118: 0
A119: 6 | B119: So | C119: =C118 -> 2018-11-10 | G119: 00:45:00 | H119: 00:00:00 | S119: 00:45:00 | T119: 00:00:00 | AC119: 0
A120: 6 | B120: So | C120: =C119 -> 2018-11-10 | G120: 00:45:00 | H120: 00:00:00 | S120: 00:45:00 | T120: 00:00:00 | AC120: 0
A121: 6 | B121: Nd | C121: =C120+1 -> 2018-11-11 | E121: =IF(I121<>0,"-","") ->  | F121: =IF(I121<>0,D121+H121,"") ->  | G121: 00:45:00 | H121: =G121*I121 -> 00:00:00 | S121: 00:45:00 | T121: 00:00:00 | AC121: 0
A122: 6 | B122: Nd | C122: =C121 -> 2018-11-11 | G122: 00:45:00 | H122: 00:00:00 | S122: 00:45:00 | T122: 00:00:00 | AC122: 0
A123: 6 | B123: Nd | C123: =C122 -> 2018-11-11 | G123: 00:45:00 | H123: 00:00:00 | S123: 00:45:00 | T123: 00:00:00 | AC123: 0
A124: 6 | B124: Nd | C124: =C123 -> 2018-11-11 | G124: 00:45:00 | H124: 00:00:00 | S124: 00:45:00 | T124: 00:00:00 | AC124: 0
A125: 6 | B125: Nd | C125: =C124 -> 2018-11-11 | G125: 00:45:00 | H125: 00:00:00 | S125: 00:45:00 | T125: 00:00:00 | AC125: 0
A126: 7 | B126: Pt | C126: =C111+7 -> 2018-11-16 | D126: 16:30:00 | E126: - | F126: 18:00:00 | G126: 00:45:00 | H126: 01:30:00 | I126: 2 | K126: Mikroekonomia W | L126: dr B. Puzio-Wacławik | M126: A104 | S126: 00:45:00 | T126: 00:00:00 | AB126: dr B. Puzio-Wacławik | AC126: 2
A127: =A126 -> 7 | B127: Pt | C127: =C126 -> 2018-11-16 | D127: 18:00:00 | E127: - | F127: 20:15:00 | G127: 00:45:00 | H127: 02:15:00 | I127: 3 | K127: Mikroekonomia Ćw | L127: dr B. Puzio-Wacławik | M127: A104 | S127: 00:45:00 | T127: 00:00:00 | AB127: dr B. Puzio-Wacławik | AC127: 3
A128: 7 | B128: Pt | C128: =C127 -> 2018-11-16 | G128: 00:45:00 | H128: 00:00:00 | S128: 00:45:00 | T128: 00:00:00 | AC128: 0
A129: 7 | B129: Pt | C129: =C128 -> 2018-11-16 | G129: 00:45:00 | H129: 00:00:00 | S129: 00:45:00 | T129: 00:00:00 | AC129: 0
A130: 7 | B130: Pt | C130: =C129 -> 2018-11-16 | G130: 00:45:00 | H130: 00:00:00 | S130: 00:45:00 | T130: 00:00:00 | AC130: 0
A131: 7 | B131: So | C131: =C130+1 -> 2018-11-17 | D131: 08:30:00 | F131: 10:45:00 | G131: 00:45:00 | H131: 02:15:00 | I131: 3 | K131: Podstawy marketingu W | L131: Mgr B. Partyńska Brzegowy | M131: A104 | S131: 00:45:00 | T131: 00:00:00 | AB131: Mgr B. Partyńska Brzegowy | AC131: 3
A132: 7 | B132: So | C132: =C131 -> 2018-11-17 | D132: 11:00:00 | F132: 14:00:00 | G132: 00:45:00 | H132: 03:00:00 | I132: 4 | K132: Podstawy marketingu Ćw | L132: Mgr B. Partyńska Bregowy | M132: A104 | S132: 00:45:00 | T132: 00:00:00 | AB132: Mgr B. Partyńska Bregowy | AC132: 4
A133: 7 | B133: So | C133: =C132 -> 2018-11-17 | D133: 14:45:00 | E133: =IF(I133<>0,"-","") -> - | F133: 16:15:00 | G133: 00:45:00 | H133: 01:30:00 | I133: 2 | K133: Matematyka W | L133: dr B. Milówka | M133: A104 | S133: 00:45:00 | T133: 00:00:00 | AB133: dr B. Milówka | AC133: 2
A134: 7 | B134: So | C134: =C133 -> 2018-11-17 | D134: 16:30:00 | E134: =IF(I134<>0,"-","") -> - | F134: 18:00:00 | G134: 00:45:00 | H134: 01:30:00 | I134: 2 | K134: Matematyka Ćw | L134: dr B. Milówka | M134: A104 | S134: 00:45:00 | T134: 00:00:00 | AB134: dr B. Milówka | AC134: 2
A135: 7 | B135: So | C135: =C134 -> 2018-11-17 | G135: 00:45:00 | H135: 00:00:00 | S135: 00:45:00 | T135: 00:00:00 | AC135: 0
A136: 7 | B136: Nd | C136: =C135+1 -> 2018-11-18 | S136: 00:45:00 | T136: 00:00:00 | AC136: 0
A137: 7 | B137: Nd | C137: =C136 -> 2018-11-18 | S137: 00:45:00 | T137: 00:00:00 | AC137: 0
A138: 7 | B138: Nd | C138: =C137 -> 2018-11-18 | S138: 00:45:00 | T138: 00:00:00 | AC138: 0
A139: 7 | B139: Nd | C139: =C138 -> 2018-11-18 | G139: 00:45:00 | H139: 00:00:00 | S139: 00:45:00 | T139: 00:00:00 | AC139: 0
A140: 7 | B140: Nd | C140: =C139 -> 2018-11-18 | G140: 00:45:00 | H140: 00:00:00 | S140: 00:45:00 | T140: 00:00:00 | AC140: 0
A141: 8 | B141: Pt | C141: =C126+7 -> 2018-11-23 | D141: 16:30:00 | E141: =IF(I141<>0,"-","") -> - | F141: =IF(I141<>0,D141+H141,"") -> 18:00:00 | G141: 00:45:00 | H141: =G141*I141 -> 01:30:00 | I141: 2 | K141: Mikroekonomia W | L141: dr B. Puzio-Wacławik | M141: A104 | S141: 00:45:00 | T141: 00:00:00 | AB141: dr B. Puzio-Wacławik | AC141: 2
A142: =A141 -> 8 | B142: Pt | C142: =C141 -> 2018-11-23 | D142: 18:00:00 | E142: =IF(I142<>0,"-","") -> - | F142: =IF(I142<>0,D142+H142,"") -> 20:15:00 | G142: 00:45:00 | H142: =G142*I142 -> 02:15:00 | I142: 3 | K142: Mikroekonomia Ćw | L142: dr B. Puzio-Wacławik | M142: A104 | S142: 00:45:00 | T142: 00:00:00 | AB142: dr B. Puzio-Wacławik | AC142: 3
A143: 8 | B143: Pt | C143: =C142 -> 2018-11-23 | G143: 00:45:00 | H143: 00:00:00 | S143: 00:45:00 | T143: 00:00:00 | AC143: 0
A144: 8 | B144: Pt | C144: =C143 -> 2018-11-23 | G144: 00:45:00 | H144: 00:00:00 | S144: 00:45:00 | T144: 00:00:00 | AC144: 0
A145: 8 | B145: Pt | C145: =C144 -> 2018-11-23 | G145: 00:45:00 | H145: 00:00:00 | S145: 00:45:00 | T145: 00:00:00 | AC145: 0
A146: 8 | B146: So | C146: =C145+1 -> 2018-11-24 | D146: 08:30:00 | E146: - | F146: 12:15:00 | G146: 00:45:00 | H146: 03:45:00 | I146: 5 | K146: Podstawy geografii turystycznej Ćw | L146: mgr M. Bugaj | M146: A104 | S146: 00:45:00 | T146: 00:00:00 | AB146: mgr M. Bugaj | AC146: 5
A147: 8 | B147: So | C147: =C146 -> 2018-11-24 | D147: 12:45:00 | E147: - | F147: 15:00:00 | G147: 00:45:00 | H147: 02:15:00 | I147: 3 | K147: Matematyka W | L147: dr B. Milówka | M147: A104 | S147: 00:45:00 | T147: 00:00:00 | AB147: dr B. Milówka | AC147: 3
A148: 8 | B148: So | C148: =C147 -> 2018-11-24 | D148: 15:15:00 | E148: - | F148: 16:45:00 | G148: 00:45:00 | H148: 01:30:00 | I148: 2 | K148: Matematyka Ćw | L148: dr B. Milówka | M148: A104 | S148: 00:45:00 | T148: 00:00:00 | AB148: dr B. Milówka | AC148: 2
A149: 8 | B149: So | C149: =C148 -> 2018-11-24 | G149: 00:45:00 | H149: 00:00:00 | S149: 00:45:00 | T149: 00:00:00 | AC149: 0
A150: 8 | B150: So | C150: =C149 -> 2018-11-24 | G150: 00:45:00 | H150: 00:00:00 | S150: 00:45:00 | T150: 00:00:00 | AC150: 0
A151: 8 | B151: Nd | C151: =C150+1 -> 2018-11-25 | D151: 08:30:00 | E151: - | F151: 10:45:00 | G151: 00:45:00 | H151: 02:15:00 | I151: 3 | K151: Gospodarka regionalna W | L151: prof. Cz. Nowak | M151: A104 | S151: 00:45:00 | T151: 00:00:00 | AB151: prof. Cz. Nowak | AC151: 3
A152: 8 | B152: Nd | C152: =C151 -> 2018-11-25 | D152: 11:00:00 | E152: - | F152: 14:45:00 | G152: 00:45:00 | H152: 03:45:00 | I152: 5 | K152: Gospodarka regionalna Ćw | L152: prof. Cz. Nowak | M152: A104 | S152: 00:45:00 | T152: 00:00:00 | AB152: prof. Cz. Nowak | AC152: 5
A153: 8 | B153: Nd | C153: =C152 -> 2018-11-25 | D153: 15:00:00 | E153: - | F153: 18:45:00 | G153: 00:45:00 | H153: 03:45:00 | I153: 5 | K153: Informatyka L2 | L153: Mgr M. Bydłosz | M153: D104 | S153: 00:45:00 | T153: 00:00:00 | AB153: Mgr M. Bydłosz | AC153: 5
A154: 8 | B154: Nd | C154: =C153 -> 2018-11-25 | G154: 00:45:00 | H154: 00:00:00 | S154: 00:45:00 | T154: 00:00:00 | AC154: 0
A155: 8 | B155: Nd | C155: =C154 -> 2018-11-25 | G155: 00:45:00 | H155: 00:00:00 | S155: 00:45:00 | T155: 00:00:00 | AC155: 0
A156: 9 | B156: Pt | C156: =C141+7 -> 2018-11-30 | D156: 16:30:00 | E156: =IF(I156<>0,"-","") -> - | F156: =IF(I156<>0,D156+H156,"") -> 18:00:00 | G156: 00:45:00 | H156: 01:30:00 | I156: 2 | K156: Matematyka W | L156: dr B. Milówka | M156: A104 | S156: 00:45:00 | T156: 00:00:00 | AB156: dr B. Milówka | AC156: 2
A157: =A156 -> 9 | B157: Pt | C157: =C156 -> 2018-11-30 | D157: 18:15:00 | E157: =IF(I157<>0,"-","") -> - | F157: =IF(I157<>0,D157+H157,"") -> 19:45:00 | G157: 00:45:00 | H157: 01:30:00 | I157: 2 | K157: Matematyka Ćw | L157: dr B. Milówka | M157: A104 | S157: 00:45:00 | T157: 00:00:00 | AB157: dr B. Milówka | AC157: 2
A158: 9 | B158: Pt | C158: =C157 -> 2018-11-30 | G158: 00:45:00 | H158: 00:00:00 | S158: 00:45:00 | T158: 00:00:00 | AC158: 0
A159: 9 | B159: Pt | C159: =C158 -> 2018-11-30 | G159: 00:45:00 | H159: 00:00:00 | S159: 00:45:00 | T159: 00:00:00 | AC159: 0
A160: 9 | B160: Pt | C160: =C159 -> 2018-11-30 | G160: 00:45:00 | H160: 00:00:00 | S160: 00:45:00 | T160: 00:00:00 | AC160: 0
A161: 9 | B161: So | C161: =C160+1 -> 2018-12-01 | D161: 08:30:00 | E161: =IF(I161<>0,"-","") -> - | F161: =IF(I161<>0,D161+H161,"") -> 12:15:00 | G161: 00:45:00 | H161: =G161*I161 -> 03:45:00 | I161: 5 | K161: Informatyka L2 | L161: Mgr M. Bydłosz | M161: D104 | S161: 00:45:00 | T161: 00:00:00 | AB161: Mgr M. Bydłosz | AC161: 5
A162: 9 | B162: So | C162: =C161 -> 2018-12-01 | D162: 13:00:00 | E162: =IF(I162<>0,"-","") -> - | F162: =IF(I162<>0,D162+H162,"") -> 16:45:00 | G162: 00:45:00 | H162: =G162*I162 -> 03:45:00 | I162: 5 | K162: Informatyka L1 | L162: Mgr M. Bydłosz | M162: D104 | S162: 00:45:00 | T162: 00:00:00 | AB162: Mgr M. Bydłosz | AC162: 5
A163: 9 | B163: So | C163: =C162 -> 2018-12-01 | G163: 00:45:00 | H163: 00:00:00 | S163: 00:45:00 | T163: 00:00:00 | AC163: 0
A164: 9 | B164: So | C164: =C163 -> 2018-12-01 | E164: =IF(I164<>0,"-","") ->  | F164: =IF(I164<>0,D164+H164,"") ->  | G164: 00:45:00 | H164: =G164*I164 -> 00:00:00 | Q164: =IF(U164<>0,"-","") ->  | R164: =IF(U164<>0,P164+T164,"") ->  | S164: 00:45:00 | T164: =S164*U164 -> 00:00:00 | AB164: =L164&X164 ->  | AC164: =I164+U164 -> 0
A165: 9 | B165: So | C165: =C164 -> 2018-12-01 | G165: 00:45:00 | H165: 00:00:00 | S165: 00:45:00 | T165: 00:00:00 | AC165: 0
A166: 9 | B166: Nd | C166: =C165+1 -> 2018-12-02 | G166: 00:45:00 | H166: 00:00:00 | S166: 00:45:00 | T166: 00:00:00 | AC166: 0
A167: 9 | B167: Nd | C167: =C166 -> 2018-12-02 | G167: 00:45:00 | H167: 00:00:00 | S167: 00:45:00 | T167: 00:00:00 | AC167: 0
A168: 9 | B168: Nd | C168: =C167 -> 2018-12-02 | G168: 00:45:00 | H168: 00:00:00 | S168: 00:45:00 | T168: 00:00:00 | AC168: 0
A169: 9 | B169: Nd | C169: =C168 -> 2018-12-02 | E169: =IF(I169<>0,"-","") ->  | F169: =IF(I169<>0,D169+H169,"") ->  | G169: 00:45:00 | H169: =G169*I169 -> 00:00:00 | S169: 00:45:00 | T169: 00:00:00 | AC169: 0
A170: 9 | B170: Nd | C170: =C169 -> 2018-12-02 | G170: 00:45:00 | H170: 00:00:00 | S170: 00:45:00 | T170: 00:00:00 | AC170: 0
A171: 10 | B171: Pt | C171: =C156+7 -> 2018-12-07 | D171: 16:30:00 | E171: - | F171: 18:45:00 | G171: 00:45:00 | H171: 02:15:00 | I171: 3 | K171: Mikroekonomia W | L171: dr B. Puzio-Wacławik | M171: A104 | S171: 00:45:00 | T171: 00:00:00 | AB171: dr B. Puzio-Wacławik | AC171: 3
A172: =A171 -> 10 | B172: Pt | C172: =C171 -> 2018-12-07 | D172: 18:45:00 | E172: - | F172: 20:15:00 | G172: 00:45:00 | H172: 01:30:00 | I172: 2 | K172: Mikroekonomia Ćw | L172: dr B. Puzio-Wacławik | S172: 00:45:00 | T172: 00:00:00 | AB172: dr B. Puzio-Wacławik | AC172: 2
A173: 10 | B173: Pt | C173: =C172 -> 2018-12-07 | G173: 00:45:00 | H173: 00:00:00 | S173: 00:45:00 | T173: 00:00:00 | AC173: 0
A174: 10 | B174: Pt | C174: =C173 -> 2018-12-07 | G174: 00:45:00 | H174: 00:00:00 | S174: 00:45:00 | T174: 00:00:00 | AC174: 0
A175: 10 | B175: Pt | C175: =C174 -> 2018-12-07 | G175: 00:45:00 | H175: 00:00:00 | S175: 00:45:00 | T175: 00:00:00 | AC175: 0
A176: 10 | B176: So | C176: =C175+1 -> 2018-12-08 | D176: 08:30:00 | E176: - | F176: 12:15:00 | G176: 00:45:00 | H176: 03:45:00 | I176: 5 | K176: Podstawy geografii turystycznej Ćw | L176: mgr M. Bugaj | M176: A104 | S176: 00:45:00 | T176: 00:00:00 | AB176: mgr M. Bugaj | AC176: 5
A177: 10 | B177: So | C177: =C176 -> 2018-12-08 | D177: 12:45:00 | E177: - | F177: 14:15:00 | G177: 00:45:00 | H177: 01:30:00 | I177: 2 | K177: Matematyka W | L177: dr B. Milówka | M177: A104 | S177: 00:45:00 | T177: 00:00:00 | AB177: dr B. Milówka | AC177: 2
A178: 10 | B178: So | C178: =C177 -> 2018-12-08 | D178: 14:30:00 | E178: - | F178: 16:00:00 | G178: 00:45:00 | H178: 01:30:00 | I178: 2 | K178: Matematyka Ćw | L178: dr B. Milówka | M178: A104 | S178: 00:45:00 | T178: 00:00:00 | AB178: dr B. Milówka | AC178: 2
A179: 10 | B179: So | C179: =C178 -> 2018-12-08 | D179: 16:15:00 | E179: - | F179: =IF(I179<>0,D179+H179,"") -> 20:00:00 | G179: 00:45:00 | H179: =G179*I179 -> 03:45:00 | I179: 5 | K179: Informatyka L2 | L179: Mgr M. Bydłosz | M179: D104 | S179: 00:45:00 | T179: 00:00:00 | AB179: Mgr M. Bydłosz | AC179: 5
A180: 10 | B180: So | C180: =C179 -> 2018-12-08 | G180: 00:45:00 | H180: 00:00:00 | S180: 00:45:00 | T180: 00:00:00 | AC180: 0
A181: 10 | B181: Nd | C181: =C180+1 -> 2018-12-09 | D181: 08:30:00 | E181: - | F181: 12:15:00 | G181: 00:45:00 | H181: 03:45:00 | I181: 5 | K181: Geografia ekonomiczna W | L181: prof. Cz. Nowak | M181: A104 | S181: 00:45:00 | T181: 00:00:00 | AB181: prof. Cz. Nowak | AC181: 5
A182: 10 | B182: Nd | C182: =C181 -> 2018-12-09 | D182: 12:30:00 | E182: - | F182: 16:15:00 | G182: 00:45:00 | H182: 03:45:00 | I182: 5 | K182: Geografia ekonomiczna Ćw | L182: prof. Cz. Nowak | M182: A104 | S182: 00:45:00 | T182: 00:00:00 | AB182: prof. Cz. Nowak | AC182: 5
A183: 10 | B183: Nd | C183: =C182 -> 2018-12-09 | E183: =IF(I183<>0,"-","") ->  | F183: =IF(I183<>0,D183+H183,"") ->  | G183: 00:45:00 | H183: =G183*I183 -> 00:00:00 | S183: 00:45:00 | T183: 00:00:00 | AB183: =L213&X183 -> Mgr M. Bydłosz | AC183: 0
A184: 10 | B184: Nd | C184: =C183 -> 2018-12-09 | G184: 00:45:00 | H184: 00:00:00 | S184: 00:45:00 | T184: 00:00:00 | AC184: 0
A185: 10 | B185: Nd | C185: =C184 -> 2018-12-09 | G185: 00:45:00 | H185: 00:00:00 | S185: 00:45:00 | T185: 00:00:00 | AC185: 0
A186: 11 | B186: Pt | C186: 2018-12-14
A187: =A186 -> 11 | B187: Pt | C187: =C186 -> 2018-12-14
A188: 11 | B188: Pt | C188: =C187 -> 2018-12-14
A189: 11 | B189: Pt | C189: =C188 -> 2018-12-14
A190: 11 | B190: Pt | C190: =C189 -> 2018-12-14
A191: 11 | B191: So | C191: =C190+1 -> 2018-12-15
A192: 11 | B192: So | C192: =C191 -> 2018-12-15
A193: 11 | B193: So | C193: =C192 -> 2018-12-15
A194: 11 | B194: So | C194: =C193 -> 2018-12-15
A195: 11 | B195: So | C195: =C194 -> 2018-12-15
A196: 11 | B196: Nd | C196: =C195+1 -> 2018-12-16
A197: 11 | B197: Nd | C197: =C196 -> 2018-12-16
A198: 11 | B198: Nd | C198: =C197 -> 2018-12-16
A199: 11 | B199: Nd | C199: =C198 -> 2018-12-16
A200: 11 | B200: Nd | C200: =C199 -> 2018-12-16
... 75 more rows

Sheet rok2
K1: WYKŁADY | M1: PL | N1: RO | O1: PO
I2: 1 | K2: Ekonometria W. | L2: Dr L. Luty | M2: 10 | N2: =SUMIF(K$36:K$285,K2,I$36:I$285) -> 10 | O2: =IF(M2=N2,"",M2-N2) -> 
I3: 2 | K3: Analiza ekonomiczna W. | L3: dr K. Stępień | M3: 10 | N3: 10
I4: 3 | K4: Finanse pub. i rynki finansowe W. | L4: Dr M. Gajda-Kantorowska | M4: 10 | N4: 10
I5: 4 | K5: Polityka gospodarcza W. | L5: Dr B. Puzio-Wacławik | M5: 10 | N5: 10
I6: 5 | K6: Analiza finansowa W. | L6: prof. K. Firlej | M6: 10 | N6: 10
I7: 6 | K7: Finanse samorządów lokalnych W. | L7: Dr Ł. Satoła | M7: 10 | N7: 10
I8: 7 | K8: Ekonomika produkcji W. | L8: Dr J. Mikołajczyk | M8: 10 | N8: 10
I9: 8 | K9: Rachunkowość finansowa W. | L9: Dr W. Sroka | M9: 10 | N9: 10
I10: 9 | N10: 0
I11: 10 | N11: 0
I12: 11 | N12: 0
I13: 12 | N13: 0
I14: 13 | N14: 0
I15: 14 | N15: 0
I16: 15 | N16: 0 | AA16: =IF(Y16=Z16,"",Y16-Z16) -> 
K17: ĆWICZENIA I GR | M17: =SUM(M2:M16) -> 80 | N17: =SUM(N2:N16) -> 80 | O17: =SUM(O2:O16) -> 0 | W17: ĆWICZENIA II GR | Y17: PL | Z17: RO | AA17: PO
I18: 1 | K18: Ekonometria Ćw. | L18: Dr L. Luty | M18: 15 | N18: =SUMIF(K$36:K$285,K18,I$36:I$285) -> 15 | O18: =IF(M18=N18,"",M18-N18) ->  | U18: 1 | Z18: =SUMIF(W$36:W$285,W18,U$36:U$285) -> 0 | AA18: =IF(Y18=Z18,"",Y18-Z18) -> 
I19: 2 | K19: Analiza ekonomiczna Ćw. | L19: dr K. Stępień | M19: 15 | N19: 15 | U19: 2 | Z19: 0
I20: 3 | K20: Finanse pub. i rynki finansowe Ćw. | L20: mgr B. Partyńska-Brzegowy | M20: 15 | N20: 15 | U20: 3 | Z20: 0
I21: 4 | K21: Polityka gospodarcza Ćw. | L21: Mgr D. Koptiew | M21: 15 | N21: 15 | U21: 4 | Z21: 0
I22: 5 | K22: Lektorat | L22: Lektor | M22: 45 | N22: 47.06 | O22: -2.06 | U22: 5 | Z22: 0
I23: 6 | K23: Analiza finansowa Ćw. | L23: prof. K. Firlej | M23: 10 | N23: 10 | U23: 6 | Z23: 0
I24: 7 | K24: Finanse samorządów lokalnych Ćw | L24: Dr Ł. Satoła | M24: 5 | N24: 5 | U24: 7 | Z24: 0
I25: 8 | K25: Ekonomika produkcji Lab. 1 | L25: Dr J. Mikołajczyk | M25: 10 | N25: 10 | U25: 8 | Z25: 0
I26: 9 | K26: Rachunkowość finansowa Lab. 1 | L26: Dr W. Sroka | M26: 20 | N26: 20 | U26: 9 | Z26: 0
I27: 10 | N27: 0 | U27: 10 | W27: Ekonomika produkcji Lab. 2 | X27: Dr J. Mikołajczyk | Y27: 10 | Z27: 10
I28: 11 | N28: 0 | U28: 11 | W28: Rachunkowość finansowa Lab. 2 | X28: Dr W. Sroka | Y28: 20 | Z28: 20
I29: 12 | N29: 0 | U29: 12 | Z29: 0
I30: 13 | N30: 0 | U30: 13 | Z30: 0
I31: 14 | N31: 0 | U31: 14 | Z31: 0
I32: 15 | N32: 0 | U32: 15 | Z32: 0
C33: III r. 1 gr. | D33: ! ! ! | F33: =I33-N34 -> -232.06 | M33: =SUM(M18:M32) -> 150 | N33: =SUM(N18:N32) -> 152.06 | O33: =SUM(O18:O32) -> -2.06 | P33: ! ! ! | R33: =U33-Z33 -> 0 | U33: =SUM(U36:U285) -> 30 | Y33: =SUM(Y2:Y32) -> 30 | Z33: =SUM(Z2:Z32) -> 30
C34: III r. 2 gr. | L34: wykł+ćw | M34: =M17+M33 -> 230 | N34: =N17+N33 -> 232.06 | O34: =O17+O33 -> -2.06
A35: ZJ. | B35: DZIEŃ | C35: DATA | D35: POCZ | F35: KON | G35: & | H35: cz trw | I35: G | K35: PRZEDMIOT | L35: WYKŁADOWCA | M35: SALA | P35: POCZ | R35: KON | S35: & | T35: cz trw | U35: G | W35: PRZEDMIOT | X35: WYKŁADOWCA | Y35: SALA
A36: 1 | B36: Pt | C36: 2018-10-05 | D36: 16:30:00 | E36: =IF(I36<>0,"-","") ->  | F36: =IF(I36<>0,D36+H36,"") ->  | G36: 00:45:00 | H36: =G36*I36 -> 00:00:00 | Q36: =IF(U36<>0,"-","") ->  | R36: =IF(U36<>0,P36+T36,"") ->  | S36: 00:45:00 | T36: =S36*U36 -> 00:00:00 | AB36: =L36&X36 ->  | AC36: =I36+U36 -> 0
A37: =A36 -> 1 | B37: Pt | C37: =C36 -> 2018-10-05 | G37: 00:45:00 | H37: 00:00:00 | S37: 00:45:00 | T37: 00:00:00 | AC37: 0
A38: 1 | B38: Pt | C38: =C37 -> 2018-10-05 | G38: 00:45:00 | H38: 00:00:00 | S38: 00:45:00 | T38: 00:00:00 | AC38: 0
A39: 1 | B39: Pt | C39: =C38 -> 2018-10-05 | G39: 00:45:00 | H39: 00:00:00 | S39: 00:45:00 | T39: 00:00:00 | AC39: 0
A40: 1 | B40: Pt | C40: =C39 -> 2018-10-05 | G40: 00:45:00 | H40: 00:00:00 | S40: 00:45:00 | T40: 00:00:00 | AC40: 0
A41: 1 | B41: So | C41: =C40+1 -> 2018-10-06 | D41: 07:30:00 | E41: =IF(I41<>0,"-","") -> - | F41: =IF(I41<>0,D41+H41,"") -> 09:45:00 | G41: 00:45:00 | H41: =G41*I41 -> 02:15:00 | I41: 3 | K41: Lektorat | S41: 00:45:00 | T41: 00:00:00 | AC41: =#REF!+U41 -> 
A42: 1 | B42: So | C42: =C41 -> 2018-10-06 | G42: 00:45:00 | H42: 00:00:00 | S42: 00:45:00 | T42: 00:00:00 | AC42: 0
A43: 1 | B43: So | C43: =C42 -> 2018-10-06 | G43: 00:45:00 | H43: 00:00:00 | S43: 00:45:00 | T43: 00:00:00 | AC43: 0
A44: 1 | B44: So | C44: =C43 -> 2018-10-06 | E44: =IF(I44<>0,"-","") ->  | F44: =IF(I44<>0,D44+H44,"") ->  | S44: 00:45:00 | T44: 00:00:00 | AC44: =I41+U44 -> 3
A45: 1 | B45: So | C45: =C44 -> 2018-10-06 | G45: 00:45:00 | H45: 00:00:00 | S45: 00:45:00 | T45: 00:00:00 | AC45: 0
A46: 1 | B46: Nd | C46: =C45+1 -> 2018-10-07 | G46: 00:45:00 | H46: 00:00:00 | S46: 00:45:00 | T46: 00:00:00 | AC46: 0
A47: 1 | B47: Nd | C47: =C46 -> 2018-10-07 | G47: 00:45:00 | H47: 00:00:00 | S47: 00:45:00 | T47: 00:00:00 | AC47: 0
A48: 1 | B48: Nd | C48: =C47 -> 2018-10-07 | G48: 00:45:00 | H48: 00:00:00 | S48: 00:45:00 | T48: 00:00:00 | AC48: 0
A49: 1 | B49: Nd | C49: =C48 -> 2018-10-07 | G49: 00:45:00 | H49: 00:00:00 | S49: 00:45:00 | T49: 00:00:00 | AC49: 0
A50: 1 | B50: Nd | C50: =C49 -> 2018-10-07 | G50: 00:45:00 | H50: 00:00:00 | S50: 00:45:00 | T50: 00:00:00 | AC50: 0
A51: 2 | B51: Pt | C51: =C36+7 -> 2018-10-12 | D51: 16:30:00 | E51: - | F51: 20:15:00 | G51: 00:45:00 | H51: 03:45:00 | I51: 5 | K51: Polityka gospodarcza W. | L51: Dr B. Puzio-Wacławik | M51: A217 | S51: 00:45:00 | T51: 00:00:00 | AB51: Dr B. Puzio-Wacławik | AC51: 5
A52: =A51 -> 2 | B52: Pt | C52: =C51 -> 2018-10-12 | G52: 00:45:00 | H52: 00:00:00 | S52: 00:45:00 | T52: 00:00:00 | AC52: 0
A53: 2 | B53: Pt | C53: =C52 -> 2018-10-12 | G53: 00:45:00 | H53: 00:00:00 | S53: 00:45:00 | T53: 00:00:00 | AC53: 0
A54: 2 | B54: Pt | C54: =C53 -> 2018-10-12 | G54: 00:45:00 | H54: 00:00:00 | S54: 00:45:00 | T54: 00:00:00 | AC54: 0
A55: 2 | B55: Pt | C55: =C54 -> 2018-10-12 | G55: 00:45:00 | H55: 00:00:00 | S55: 00:45:00 | T55: 00:00:00 | AC55: 0
A56: 2 | B56: So | C56: =C55+1 -> 2018-10-13 | D56: 07:30:00 | E56: =IF(I56<>0,"-","") -> - | F56: =IF(I56<>0,D56+H56,"") -> 09:45:00 | G56: 00:45:00 | H56: =G56*I56 -> 02:15:00 | I56: 3 | K56: Lektorat | S56: 00:45:00 | T56: 00:00:00 | AC56: 3
A57: 2 | B57: So | C57: =C56 -> 2018-10-13 | D57: 10:00:00 | E57: =IF(I57<>0,"-","") -> - | F57: =IF(I57<>0,D57+H57,"") -> 13:00:00 | G57: 00:45:00 | H57: =G57*I57 -> 03:00:00 | I57: 4 | K57: Finanse pub. i rynki finansowe W. | L57: Dr M. Gajda-Kantorowska | M57: A217 | S57: 00:45:00 | T57: 00:00:00 | AB57: Dr M. Gajda-Kantorowska | AC57: 4
A58: 2 | B58: So | C58: =C57 -> 2018-10-13 | D58: 13:30:00 | E58: =IF(I58<>0,"-","") -> - | F58: =IF(I58<>0,D58+H58,"") -> 15:45:00 | G58: 00:45:00 | H58: =G58*I58 -> 02:15:00 | I58: 3 | K58: Rachunkowość finansowa W. | L58: Dr W. Sroka | M58: A217 | S58: 00:45:00 | T58: 00:00:00 | AB58: Dr W. Sroka | AC58: 3
A59: 2 | B59: So | C59: =C58 -> 2018-10-13 | D59: 16:00:00 | E59: - | F59: 19:45:00 | G59: 00:45:00 | H59: 03:45:00 | I59: 5 | K59: Rachunkowość finansowa Lab. 1 | L59: Dr W. Sroka | M59: A205 | S59: 00:45:00 | T59: 00:00:00 | AB59: Dr W. Sroka | AC59: 5
A60: 2 | B60: So | C60: =C59 -> 2018-10-13 | G60: 00:45:00 | H60: 00:00:00 | S60: 00:45:00 | T60: 00:00:00 | AC60: 0
A61: 2 | B61: Nd | C61: =C60+1 -> 2018-10-14 | D61: 09:30:00 | E61: - | F61: 12:30:00 | G61: 00:45:00 | H61: 03:00:00 | I61: 4 | K61: Ekonometria W. | L61: Dr L. Luty | M61: A217 | S61: 00:45:00 | T61: 00:00:00 | AB61: Dr L. Luty | AC61: 4
A62: 2 | B62: Nd | C62: =C61 -> 2018-10-14 | D62: 13:00:00 | E62: - | F62: 16:45:00 | G62: 00:45:00 | H62: 03:45:00 | I62: 5 | K62: Ekonometria Ćw. | L62: Dr L. Luty | M62: A217 | S62: 00:45:00 | T62: 00:00:00 | AB62: Dr L. Luty | AC62: 5
A63: 2 | B63: Nd | C63: =C62 -> 2018-10-14 | G63: 00:45:00 | H63: 00:00:00 | S63: 00:45:00 | T63: 00:00:00 | AC63: 0
A64: 2 | B64: Nd | C64: =C63 -> 2018-10-14 | G64: 00:45:00 | H64: 00:00:00 | S64: 00:45:00 | T64: 00:00:00 | AC64: 0
A65: 2 | B65: Nd | C65: =C64 -> 2018-10-14 | G65: 00:45:00 | H65: 00:00:00 | S65: 00:45:00 | T65: 00:00:00 | AC65: 0
A66: 3 | B66: Pt | C66: =C51+7 -> 2018-10-19 | D66: 16:30:00 | G66: 00:45:00 | H66: 00:00:00 | S66: 00:45:00 | T66: 00:00:00 | AC66: 0
A67: =A66 -> 3 | B67: Pt | C67: =C66 -> 2018-10-19 | G67: 00:45:00 | H67: 00:00:00 | S67: 00:45:00 | T67: 00:00:00 | AC67: 0
A68: 3 | B68: Pt | C68: =C67 -> 2018-10-19 | G68: 00:45:00 | H68: 00:00:00 | S68: 00:45:00 | T68: 00:00:00 | AC68: 0
A69: 3 | B69: Pt | C69: =C68 -> 2018-10-19 | G69: 00:45:00 | H69: 00:00:00 | S69: 00:45:00 | T69: 00:00:00 | AC69: 0
A70: 3 | B70: Pt | C70: =C69 -> 2018-10-19 | G70: 00:45:00 | H70: 00:00:00 | S70: 00:45:00 | T70: 00:00:00 | AC70: 0
A71: 3 | B71: So | C71: =C70+1 -> 2018-10-20 | D71: 07:30:00 | E71: =IF(I71<>0,"-","") -> - | F71: =IF(I71<>0,D71+H71,"") -> 09:45:00 | G71: 00:45:00 | H71: =G71*I71 -> 02:15:00 | I71: 3 | K71: Lektorat | S71: 00:45:00 | T71: 00:00:00 | AC71: 3
A72: 3 | B72: So | C72: =C71 -> 2018-10-20 | G72: 00:45:00 | H72: 00:00:00 | S72: 00:45:00 | T72: 00:00:00 | AC72: 0
A73: 3 | B73: So | C73: =C72 -> 2018-10-20 | G73: 00:45:00 | H73: 00:00:00 | S73: 00:45:00 | T73: 00:00:00 | AC73: 0
A74: 3 | B74: So | C74: =C73 -> 2018-10-20 | G74: 00:45:00 | H74: 00:00:00 | S74: 00:45:00 | T74: 00:00:00 | AC74: 0
A75: 3 | B75: So | C75: =C74 -> 2018-10-20 | G75: 00:45:00 | H75: 00:00:00 | S75: 00:45:00 | T75: 00:00:00 | AC75: 0
A76: 3 | B76: Nd | C76: =C75+1 -> 2018-10-21 | E76: =IF(I76<>0,"-","") ->  | F76: =IF(I76<>0,D76+H76,"") ->  | G76: 00:45:00 | H76: =G76*I76 -> 00:00:00 | S76: 00:45:00 | T76: 00:00:00 | AC76: 0
A77: 3 | B77: Nd | C77: =C76 -> 2018-10-21 | E77: =IF(I77<>0,"-","") ->  | F77: =IF(I77<>0,D77+H77,"") ->  | G77: 00:45:00 | H77: =G77*I77 -> 00:00:00 | S77: 00:45:00 | T77: 00:00:00 | AC77: 0
A78: 3 | B78: Nd | C78: =C77 -> 2018-10-21 | G78: 00:45:00 | H78: 00:00:00 | S78: 00:45:00 | T78: 00:00:00 | AC78: 0
A79: 3 | B79: Nd | C79: =C78 -> 2018-10-21 | G79: 00:45:00 | H79: 00:00:00 | S79: 00:45:00 | T79: 00:00:00 | AC79: 0
A80: 3 | B80: Nd | C80: =C79 -> 2018-10-21 | G80: 00:45:00 | H80: 00:00:00 | S80: 00:45:00 | T80: 00:00:00 | AC80: 0
A81: 4 | B81: Pt | C81: =C66+7 -> 2018-10-26 | D81: 16:30:00 | E81: - | F81: 20:15:00 | G81: 00:45:00 | H81: 03:45:00 | I81: 5 | K81: Finanse pub. i rynki finansowe Ćw. | L81: mgr B. Partyńska-Brzegowy | M81: A217 | S81: 00:45:00 | T81: 00:00:00 | AB81: mgr B. Partyńska-Brzegowy | AC81: 5
A82: =A81 -> 4 | B82: Pt | C82: =C81 -> 2018-10-26 | G82: 00:45:00 | H82: 00:00:00 | S82: 00:45:00 | T82: 00:00:00 | AC82: 0
A83: 4 | B83: Pt | C83: =C82 -> 2018-10-26 | G83: 00:45:00 | H83: 00:00:00 | S83: 00:45:00 | T83: 00:00:00 | AC83: 0
A84: 4 | B84: Pt | C84: =C83 -> 2018-10-26 | G84: 00:45:00 | H84: 00:00:00 | S84: 00:45:00 | T84: 00:00:00 | AC84: 0
A85: 4 | B85: Pt | C85: =C84 -> 2018-10-26 | G85: 00:45:00 | H85: 00:00:00 | S85: 00:45:00 | T85: 00:00:00 | AC85: 0
A86: 4 | B86: So | C86: =C85+1 -> 2018-10-27 | D86: 07:30:00 | E86: =IF(I86<>0,"-","") -> - | F86: =IF(I86<>0,D86+H86,"") -> 09:45:00 | G86: 00:45:00 | H86: =G86*I86 -> 02:15:00 | I86: 3 | K86: Lektorat | S86: 00:45:00 | T86: 00:00:00 | AC86: 3
A87: 4 | B87: So | C87: =C86 -> 2018-10-27 | D87: 10:00:00 | E87: =IF(I87<>0,"-","") -> - | F87: =IF(I87<>0,D87+H87,"") -> 13:00:00 | G87: 00:45:00 | H87: =G87*I87 -> 03:00:00 | I87: 4 | K87: Finanse pub. i rynki finansowe W. | L87: Dr M. Gajda-Kantorowska | M87: A217 | S87: 00:45:00 | T87: 00:00:00 | AB87: Dr M. Gajda-Kantorowska | AC87: 4
A88: 4 | B88: So | C88: =C87 -> 2018-10-27 | D88: 13:15:00 | E88: - | F88: 15:30:00 | G88: 00:45:00 | H88: 02:15:00 | I88: 3 | K88: Analiza finansowa W. | L88: prof. K. Firlej | M88: A217 | S88: 00:45:00 | T88: 00:00:00 | AB88: prof. K. Firlej | AC88: 3
A89: 4 | B89: So | C89: =C88 -> 2018-10-27 | D89: 16:00:00 | G89: 00:45:00 | H89: 00:00:00 | P89: 16:00:00 | Q89: - | R89: 19:45:00 | S89: 00:45:00 | T89: 03:45:00 | U89: 5 | W89: Rachunkowość finansowa Lab. 2 | X89: Dr W. Sroka | Y89: A205 | AB89: =L89&X89 -> Dr W. Sroka | AC89: 5
A90: 4 | B90: So | C90: =C89 -> 2018-10-27 | G90: 00:45:00 | H90: 00:00:00 | S90: 00:45:00 | T90: 00:00:00 | AC90: 0
A91: 4 | B91: Nd | C91: =C90+1 -> 2018-10-28 | D91: 08:15:00 | E91: - | F91: 12:00:00 | G91: 00:45:00 | H91: 03:45:00 | I91: 5 | K91: Analiza ekonomiczna W. | L91: dr K. Stępień | M91: A217 | S91: 00:45:00 | T91: 00:00:00 | AB91: dr K. Stępień | AC91: 5
A92: 4 | B92: Nd | C92: =C91 -> 2018-10-28 | D92: 12:30:00 | E92: - | F92: 15:30:00 | G92: 00:45:00 | H92: 03:00:00 | I92: 4 | K92: Analiza ekonomiczna Ćw. | L92: dr K. Stępień | M92: A217 | S92: 00:45:00 | T92: 00:00:00 | AB92: dr K. Stępień | AC92: 4
A93: 4 | B93: Nd | C93: =C92 -> 2018-10-28 | G93: 00:45:00 | H93: 00:00:00 | S93: 00:45:00 | T93: 00:00:00 | AC93: 0
A94: 4 | B94: Nd | C94: =C93 -> 2018-10-28 | G94: 00:45:00 | H94: 00:00:00 | S94: 00:45:00 | T94: 00:00:00 | AC94: 0
A95: 4 | B95: Nd | C95: =C94 -> 2018-10-28 | G95: 00:45:00 | H95: 00:00:00 | S95: 00:45:00 | T95: 00:00:00 | AC95: 0
A96: 5 | B96: Pt | C96: 2018-11-02 | G96: 00:45:00 | H96: 00:00:00 | S96: 00:45:00 | T96: 00:00:00 | AC96: 0
A97: =A96 -> 5 | B97: Pt | C97: =C96 -> 2018-11-02 | G97: 00:45:00 | H97: 00:00:00 | S97: 00:45:00 | T97: 00:00:00 | AC97: 0
A98: 5 | B98: Pt | C98: =C97 -> 2018-11-02 | G98: 00:45:00 | H98: 00:00:00 | S98: 00:45:00 | T98: 00:00:00 | AC98: 0
A99: 5 | B99: Pt | C99: =C98 -> 2018-11-02 | G99: 00:45:00 | H99: 00:00:00 | S99: 00:45:00 | T99: 00:00:00 | AC99: 0
A100: 5 | B100: Pt | C100: =C99 -> 2018-11-02 | E100: =IF(I100<>0,"-","") ->  | F100: =IF(I100<>0,D100+H100,"") ->  | G100: 00:45:00 | H100: =G100*I100 -> 00:00:00 | Q100: =IF(U100<>0,"-","") ->  | R100: =IF(U100<>0,P100+T100,"") ->  | S100: 00:45:00 | T100: =S100*U100 -> 00:00:00 | AB100: =L100&X100 ->  | AC100: =I100+U100 -> 0
A101: 5 | B101: So | C101: =C100+1 -> 2018-11-03 | D101: 07:30:00 | E101: - | F101: 09:45:00 | G101: 00:45:00 | H101: 02:15:00 | I101: 3 | K101: Lektorat | S101: 00:45:00 | T101: 00:00:00 | AC101: 3
A102: 5 | B102: So | C102: =C101 -> 2018-11-03 | G102: 00:45:00 | H102: 00:00:00 | S102: 00:45:00 | T102: 00:00:00 | AC102: 0
A103: 5 | B103: So | C103: =C102 -> 2018-11-03 | G103: 00:45:00 | H103: 00:00:00 | S103: 00:45:00 | T103: 00:00:00 | AC103: 0
A104: 5 | B104: So | C104: =C103 -> 2018-11-03 | E104: =IF(I104<>0,"-","") ->  | F104: =IF(I104<>0,D104+H104,"") ->  | G104: 00:45:00 | H104: 00:00:00 | AC104: 0
A105: 5 | B105: So | C105: =C104 -> 2018-11-03 | E105: =IF(I105<>0,"-","") ->  | F105: =IF(I105<>0,D105+H105,"") ->  | G105: 00:45:00 | H105: =G105*I105 -> 00:00:00 | AC105: 0
A106: 5 | B106: Nd | C106: =C105+1 -> 2018-11-04 | E106: =IF(I106<>0,"-","") ->  | F106: =IF(I106<>0,D106+H106,"") ->  | G106: 00:45:00 | H106: =G106*I106 -> 00:00:00 | AC106: 0
A107: 5 | B107: Nd | C107: =C106 -> 2018-11-04 | E107: =IF(I107<>0,"-","") ->  | F107: =IF(I107<>0,D107+H107,"") ->  | G107: 00:45:00 | H107: =G107*I107 -> 00:00:00 | AC107: 0
A108: 5 | B108: Nd | C108: =C107 -> 2018-11-04 | E108: =IF(I108<>0,"-","") ->  | F108: =IF(I108<>0,D108+H108,"") ->  | G108: 00:45:00 | H108: =G108*I108 -> 00:00:00 | AC108: 0
A109: 5 | B109: Nd | C109: =C108 -> 2018-11-04 | G109: 00:45:00 | H109: 00:00:00 | S109: 00:45:00 | T109: 00:00:00 | AC109: 0
A110: 5 | B110: Nd | C110: =C109 -> 2018-11-04 | G110: 00:45:00 | H110: 00:00:00 | S110: 00:45:00 | T110: 00:00:00 | AC110: 0
A111: 6 | B111: Pt | C111: 2018-11-09 | G111: 00:45:00 | H111: 00:00:00 | S111: 00:45:00 | T111: 00:00:00 | AC111: 0
A112: =A111 -> 6 | B112: Pt | C112: =C111 -> 2018-11-09 | G112: 00:45:00 | H112: 00:00:00 | S112: 00:45:00 | T112: 00:00:00 | AC112: 0
A113: 6 | B113: Pt | C113: =C112 -> 2018-11-09 | G113: 00:45:00 | H113: 00:00:00 | S113: 00:45:00 | T113: 00:00:00 | AC113: 0
A114: 6 | B114: Pt | C114: =C113 -> 2018-11-09 | G114: 00:45:00 | H114: 00:00:00 | S114: 00:45:00 | T114: 00:00:00 | AC114: 0
A115: 6 | B115: Pt | C115: =C114 -> 2018-11-09 | G115: 00:45:00 | H115: 00:00:00 | S115: 00:45:00 | T115: 00:00:00 | AC115: 0
A116: 6 | B116: So | C116: =C115+1 -> 2018-11-10 | D116: 07:30:00 | E116: - | F116: 09:45:00 | G116: 00:45:00 | H116: 02:15:00 | I116: 3 | K116: Lektorat | S116: 00:45:00 | T116: 00:00:00 | AC116: 3
A117: 6 | B117: So | C117: =C116 -> 2018-11-10 | G117: 00:45:00 | H117: 00:00:00 | S117: 00:45:00 | T117: 00:00:00 | AC117: 0
A118: 6 | B118: So | C118: =C117 -> 2018-11-10 | G118: 00:45:00 | H118: 00:00:00 | S118: 00:45:00 | T118: 00:00:00 | AC118: 0
A119: 6 | B119: So | C119: =C118 -> 2018-11-10 | G119: 00:45:00 | H119: 00:00:00 | S119: 00:45:00 | T119: 00:00:00 | AC119: 0
A120: 6 | B120: So | C120: =C119 -> 2018-11-10 | G120: 00:45:00 | H120: 00:00:00 | S120: 00:45:00 | T120: 00:00:00 | AC120: 0
A121: 6 | B121: Nd | C121: =C120+1 -> 2018-11-11 | G121: 00:45:00 | H121: 00:00:00 | S121: 00:45:00 | T121: 00:00:00 | AC121: 0
A122: 6 | B122: Nd | C122: =C121 -> 2018-11-11 | G122: 00:45:00 | H122: 00:00:00 | S122: 00:45:00 | T122: 00:00:00 | AC122: 0
A123: 6 | B123: Nd | C123: =C122 -> 2018-11-11 | G123: 00:45:00 | H123: 00:00:00 | S123: 00:45:00 | T123: 00:00:00 | AC123: 0
A124: 6 | B124: Nd | C124: =C123 -> 2018-11-11 | G124: 00:45:00 | H124: 00:00:00 | S124: 00:45:00 | T124: 00:00:00 | AC124: 0
A125: 6 | B125: Nd | C125: =C124 -> 2018-11-11 | G125: 00:45:00 | H125: 00:00:00 | S125: 00:45:00 | T125: 00:00:00 | AC125: 0
A126: 7 | B126: Pt | C126: =C111+7 -> 2018-11-16 | D126: 16:30:00 | E126: - | F126: 19:30:00 | G126: 00:45:00 | H126: 03:00:00 | I126: 4 | K126: Ekonomika produkcji W. | L126: Dr J. Mikołajczyk | M126: A217 | S126: 00:45:00 | T126: 00:00:00 | AB126: Dr J. Mikołajczyk | AC126: 4
A127: =A126 -> 7 | B127: Pt | C127: =C126 -> 2018-11-16 | G127: 00:45:00 | H127: 00:00:00 | S127: 00:45:00 | T127: 00:00:00 | AC127: 0
A128: 7 | B128: Pt | C128: =C127 -> 2018-11-16 | G128: 00:45:00 | H128: 00:00:00 | S128: 00:45:00 | T128: 00:00:00 | AC128: 0
A129: 7 | B129: Pt | C129: =C128 -> 2018-11-16 | G129: 00:45:00 | H129: 00:00:00 | S129: 00:45:00 | T129: 00:00:00 | AC129: 0
A130: 7 | B130: Pt | C130: =C129 -> 2018-11-16 | G130: 00:45:00 | H130: 00:00:00 | S130: 00:45:00 | T130: 00:00:00 | AC130: 0
A131: 7 | B131: So | C131: =C130+1 -> 2018-11-17 | D131: 07:30:00 | E131: - | F131: 09:45:00 | G131: 00:45:00 | H131: 02:15:00 | I131: 3 | K131: Lektorat | S131: 00:45:00 | T131: 00:00:00 | AC131: 3
A132: 7 | B132: So | C132: =C131 -> 2018-11-17 | D132: 10:00:00 | E132: - | F132: 12:15:00 | G132: 00:45:00 | H132: 02:15:00 | I132: 3 | K132: Analiza finansowa Ćw. | L132: prof. K. Firlej | M132: A217 | S132: 00:45:00 | T132: 00:00:00 | AB132: prof. K. Firlej | AC132: 3
A133: 7 | B133: So | C133: =C132 -> 2018-11-17 | D133: 13:00:00 | E133: - | F133: 15:15:00 | G133: 00:45:00 | H133: 02:15:00 | I133: 3 | K133: Ekonomika produkcji Lab. 1 | L133: Dr J. Mikołajczyk | M133: C313 | P133: 13:00:00 | Q133: - | R133: 15:15:00 | S133: 00:45:00 | T133: 02:15:00 | U133: 3 | W133: Rachunkowość finansowa Lab. 2 | X133: Dr W. Sroka | Y133: A205 | AB133: Dr J. MikołajczykDr W. Sroka | AC133: 6
A134: 7 | B134: So | C134: =C133 -> 2018-11-17 | D134: 15:30:00 | E134: - | F134: =IF(I134<>0,D134+H134,"") -> 17:45:00 | G134: 00:45:00 | H134: =G134*I134 -> 02:15:00 | I134: 3 | K134: Rachunkowość finansowa Lab. 1 | L134: Dr W. Sroka | M134: A205 | P134: 15:30:00 | Q134: - | R134: 17:45:00 | S134: 00:45:00 | T134: 02:15:00 | U134: 3 | W134: Ekonomika produkcji Lab. 2 | X134: Dr J. Mikołajczyk | Y134: C313 | AB134: Dr W. SrokaDr J. Mikołajczyk | AC134: 6
A135: 7 | B135: So | C135: =C134 -> 2018-11-17 | S135: 00:45:00 | T135: 00:00:00 | AC135: 0
A136: 7 | B136: Nd | C136: =C135+1 -> 2018-11-18 | D136: 09:00:00 | E136: - | F136: 11:15:00 | G136: 00:45:00 | H136: 02:15:00 | I136: 3 | K136: Ekonometria W. | L136: Dr L. Luty | M136: A217 | S136: 00:45:00 | T136: 00:00:00 | AB136: Dr L. Luty | AC136: 3
A137: 7 | B137: Nd | C137: =C136 -> 2018-11-18 | D137: 11:30:00 | E137: - | F137: 15:15:00 | G137: 00:45:00 | H137: 03:45:00 | I137: 5 | K137: Ekonometria Ćw. | L137: Dr L. Luty | M137: A217 | S137: 00:45:00 | T137: 00:00:00 | AB137: Dr L. Luty | AC137: 5
A138: 7 | B138: Nd | C138: =C137 -> 2018-11-18 | D138: 15:45:00 | E138: - | F138: 19:30:00 | G138: 00:45:00 | H138: 03:45:00 | I138: 5 | K138: Finanse samorządów lokalnych W. | L138: Dr Ł. Satoła | M138: A217 | S138: 00:45:00 | T138: 00:00:00 | AB138: Dr Ł. Satoła | AC138: 5
A139: 7 | B139: Nd | C139: =C138 -> 2018-11-18 | G139: 00:45:00 | H139: 00:00:00 | S139: 00:45:00 | T139: 00:00:00 | AC139: 0
A140: 7 | B140: Nd | C140: =C139 -> 2018-11-18 | G140: 00:45:00 | H140: 00:00:00 | S140: 00:45:00 | T140: 00:00:00 | AC140: 0
A141: 8 | B141: Pt | C141: =C126+7 -> 2018-11-23 | D141: 16:30:00 | G141: 00:45:00 | H141: 00:00:00 | S141: 00:45:00 | T141: 00:00:00 | AC141: 0
A142: =A141 -> 8 | B142: Pt | C142: =C141 -> 2018-11-23 | G142: 00:45:00 | H142: 00:00:00 | S142: 00:45:00 | T142: 00:00:00 | AC142: 0
A143: 8 | B143: Pt | C143: =C142 -> 2018-11-23 | G143: 00:45:00 | H143: 00:00:00 | S143: 00:45:00 | T143: 00:00:00 | AC143: 0
A144: 8 | B144: Pt | C144: =C143 -> 2018-11-23 | G144: 00:45:00 | H144: 00:00:00 | S144: 00:45:00 | T144: 00:00:00 | AC144: 0
A145: 8 | B145: Pt | C145: =C144 -> 2018-11-23 | G145: 00:45:00 | H145: 00:00:00 | S145: 00:45:00 | T145: 00:00:00 | AC145: 0
A146: 8 | B146: So | C146: =C145+1 -> 2018-11-24 | D146: 07:30:00 | E146: - | F146: 09:45:00 | G146: 00:45:00 | H146: 02:15:00 | I146: 3 | K146: Lektorat | S146: 00:45:00 | T146: 00:00:00 | AC146: 3
A147: 8 | B147: So | C147: =C146 -> 2018-11-24 | D147: 10:00:00 | E147: - | F147: 13:45:00 | G147: 00:45:00 | H147: 03:45:00 | I147: 5 | K147: Rachunkowość finansowa W. | L147: Dr W. Sroka | M147: A217 | S147: 00:45:00 | T147: 00:00:00 | AB147: Dr W. Sroka | AC147: 5
A148: 8 | B148: So | C148: =C147 -> 2018-11-24 | D148: 14:00:00 | E148: - | F148: 17:45:00 | G148: 00:45:00 | H148: 03:45:00 | I148: 5 | K148: Rachunkowość finansowa Lab. 1 | L148: Dr W. Sroka | M148: A205 | S148: 00:45:00 | T148: 00:00:00 | AB148: Dr W. Sroka | AC148: 5
A149: 8 | B149: So | C149: =C148 -> 2018-11-24 | D149: 16:30:00 | E149: - | F149: 18:45:00 | G149: 00:45:00 | H149: 02:15:00 | I149: 3 | S149: 00:45:00 | T149: 00:00:00 | AC149: 3
A150: 8 | B150: So | C150: =C149 -> 2018-11-24 | G150: 00:45:00 | H150: 00:00:00 | S150: 00:45:00 | T150: 00:00:00 | AC150: 0
A151: 8 | B151: Nd | C151: =C150+1 -> 2018-11-25 | G151: 00:45:00 | H151: 00:00:00 | S151: 00:45:00 | T151: 00:00:00 | AC151: 0
A152: 8 | B152: Nd | C152: =C151 -> 2018-11-25 | G152: 00:45:00 | H152: 00:00:00 | S152: 00:45:00 | T152: 00:00:00 | AC152: 0
A153: 8 | B153: Nd | C153: =C152 -> 2018-11-25 | G153: 00:45:00 | H153: 00:00:00 | S153: 00:45:00 | T153: 00:00:00 | AC153: 0
A154: 8 | B154: Nd | C154: =C153 -> 2018-11-25 | G154: 00:45:00 | H154: 00:00:00 | S154: 00:45:00 | T154: 00:00:00 | AC154: 0
A155: 8 | B155: Nd | C155: =C154 -> 2018-11-25 | G155: 00:45:00 | H155: 00:00:00 | S155: 00:45:00 | T155: 00:00:00 | AC155: 0
A156: 9 | B156: Pt | C156: =C141+7 -> 2018-11-30 | D156: 16:30:00 | E156: - | F156: 20:15:00 | G156: 00:45:00 | H156: 03:45:00 | I156: 5 | K156: Finanse pub. i rynki finansowe Ćw. | L156: mgr B. Partyńska-Brzegowy | M156: A217 | S156: 00:45:00 | T156: =S156*U156 -> 00:00:00 | AB156: mgr B. Partyńska-Brzegowy | AC156: 5
A157: =A156 -> 9 | B157: Pt | C157: =C156 -> 2018-11-30 | G157: 00:45:00 | H157: 00:00:00 | S157: 00:45:00 | T157: =S157*U157 -> 00:00:00 | AC157: 0
A158: 9 | B158: Pt | C158: =C157 -> 2018-11-30 | G158: 00:45:00 | H158: 00:00:00 | S158: 00:45:00 | T158: 00:00:00 | AC158: 0
A159: 9 | B159: Pt | C159: =C158 -> 2018-11-30 | G159: 00:45:00 | H159: 00:00:00 | S159: 00:45:00 | T159: =S159*U159 -> 00:00:00 | AC159: 0
A160: 9 | B160: Pt | C160: =C159 -> 2018-11-30 | G160: 00:45:00 | H160: 00:00:00 | S160: 00:45:00 | T160: 00:00:00 | AC160: 0
A161: 9 | B161: So | C161: =C160+1 -> 2018-12-01 | D161: 07:30:00 | E161: - | F161: 09:45:00 | G161: 00:45:00 | H161: 02:15:00 | I161: 3 | K161: Lektorat | S161: 00:45:00 | T161: 00:00:00 | AC161: 3
A162: 9 | B162: So | C162: =C161 -> 2018-12-01 | D162: 10:00:00 | E162: - | F162: 12:15:00 | G162: 00:45:00 | H162: 02:15:00 | I162: 3 | K162: Analiza finansowa W. | L162: prof. K. Firlej | M162: A217 | S162: 00:45:00 | T162: 00:00:00 | AB162: prof. K. Firlej | AC162: 3
A163: 9 | B163: So | C163: =C162 -> 2018-12-01 | D163: 12:30:00 | E163: - | F163: 14:00:00 | G163: 00:45:00 | H163: 01:30:00 | I163: 2 | K163: Analiza finansowa Ćw. | L163: prof. K. Firlej | M163: A217 | S163: 00:45:00 | T163: 00:00:00 | AB163: prof. K. Firlej | AC163: 2
A164: 9 | B164: So | C164: =C163 -> 2018-12-01 | D164: 14:45:00 | E164: - | F164: 16:15:00 | G164: 00:45:00 | H164: 01:30:00 | I164: 2 | K164: Rachunkowość finansowa W. | L164: Dr W. Sroka | M164: A217 | S164: 00:45:00 | T164: 00:00:00 | AB164: Dr W. Sroka | AC164: 2
A165: 9 | B165: So | C165: =C164 -> 2018-12-01 | D165: 16:30:00 | E165: =IF(I165<>0,"-","") ->  | F165: =IF(I165<>0,D165+H165,"") ->  | G165: 00:45:00 | H165: =G165*I165 -> 00:00:00 | P165: 16:30:00 | Q165: - | R165: 20:15:00 | S165: 00:45:00 | T165: 03:45:00 | U165: 5 | W165: Rachunkowość finansowa Lab. 2 | X165: Dr W. Sroka | Y165: A205 | AB165: Dr W. Sroka | AC165: =I165+U165 -> 5
A166: 9 | B166: Nd | C166: =C165+1 -> 2018-12-02 | D166: 08:15:00 | E166: =IF(I166<>0,"-","") -> - | F166: =IF(I166<>0,D166+H166,"") -> 10:30:00 | G166: 00:45:00 | H166: =G166*I166 -> 02:15:00 | I166: 3 | K166: Analiza ekonomiczna W. | L166: dr K. Stępień | M166: A217 | S166: 00:45:00 | T166: 00:00:00 | AB166: dr K. Stępień | AC166: =I166+U166 -> 3
A167: 9 | B167: Nd | C167: =C166 -> 2018-12-02 | D167: 10:45:00 | E167: =IF(I167<>0,"-","") -> - | F167: =IF(I167<>0,D167+H167,"") -> 13:45:00 | G167: 00:45:00 | H167: 03:00:00 | I167: 4 | K167: Analiza ekonomiczna Ćw. | L167: dr K. Stępień | M167: A217 | S167: 00:45:00 | T167: 00:00:00 | AB167: dr K. Stępień | AC167: 4
A168: 9 | B168: Nd | C168: =C167 -> 2018-12-02 | D168: 14:30:00 | E168: - | F168: 18:15:00 | G168: 00:45:00 | H168: 03:45:00 | I168: 5 | K168: Finanse samorządów lokalnych Ćw | L168: Dr Ł. Satoła | M168: A217 | S168: 00:45:00 | T168: 00:00:00 | AB168: Dr Ł. Satoła | AC168: 5
A169: 9 | B169: Nd | C169: =C168 -> 2018-12-02 | E169: =IF(I169<>0,"-","") ->  | F169: =IF(I169<>0,D169+H169,"") ->  | G169: 00:45:00 | H169: =G169*I169 -> 00:00:00 | Q169: =IF(U169<>0,"-","") ->  | R169: =IF(U169<>0,P169+T169,"") ->  | S169: 00:45:00 | T169: =S169*U169 -> 00:00:00 | AB169: =L169&X169 ->  | AC169: =I169+U169 -> 0
A170: 9 | B170: Nd | C170: =C169 -> 2018-12-02 | G170: 00:45:00 | H170: 00:00:00 | S170: 00:45:00 | T170: 00:00:00 | AC170: 0
A171: 10 | B171: Pt | C171: =C156+7 -> 2018-12-07 | D171: 16:30:00 | E171: - | F171: 20:15:00 | G171: 00:45:00 | H171: 03:45:00 | I171: 5 | K171: Polityka gospodarcza Ćw. | L171: Mgr D. Koptiew | M171: A217 | S171: 00:45:00 | T171: 00:00:00 | AB171: Mgr D. Koptiew | AC171: 5
A172: =A171 -> 10 | B172: Pt | C172: =C171 -> 2018-12-07 | G172: 00:45:00 | H172: 00:00:00 | S172: 00:45:00 | T172: 00:00:00 | AC172: 0
A173: 10 | B173: Pt | C173: =C172 -> 2018-12-07 | G173: 00:45:00 | H173: 00:00:00 | S173: 00:45:00 | T173: 00:00:00 | AC173: 0
A174: 10 | B174: Pt | C174: =C173 -> 2018-12-07 | G174: 00:45:00 | H174: 00:00:00 | S174: 00:45:00 | T174: 00:00:00 | AC174: 0
A175: 10 | B175: Pt | C175: =C174 -> 2018-12-07 | G175: 00:45:00 | H175: 00:00:00 | S175: 00:45:00 | T175: 00:00:00 | AC175: 0
A176: 10 | B176: So | C176: =C175+1 -> 2018-12-08 | D176: 07:30:00 | E176: - | F176: 09:45:00 | G176: 00:45:00 | H176: 02:15:00 | I176: 3 | K176: Lektorat | S176: 00:45:00 | T176: 00:00:00 | AC176: 3
A177: 10 | B177: So | C177: =C176 -> 2018-12-08 | D177: 10:00:00 | E177: - | F177: 13:45:00 | G177: 00:45:00 | H177: 03:45:00 | I177: 5 | K177: Polityka gospodarcza Ćw. | L177: Mgr D. Koptiew | M177: A217 | S177: 00:45:00 | T177: 00:00:00 | AB177: Mgr D. Koptiew | AC177: 5
A178: 10 | B178: So | C178: =C177 -> 2018-12-08 | G178: 00:45:00 | H178: 00:00:00 | S178: 00:45:00 | T178: 00:00:00 | AC178: 0
A179: 10 | B179: So | C179: =C178 -> 2018-12-08 | G179: 00:45:00 | H179: 00:00:00 | S179: 00:45:00 | T179: 00:00:00 | AC179: 0
A180: 10 | B180: So | C180: =C179 -> 2018-12-08 | G180: 00:45:00 | H180: 00:00:00 | S180: 00:45:00 | T180: 00:00:00 | AC180: 0
A181: 10 | B181: Nd | C181: =C180+1 -> 2018-12-09 | G181: 00:45:00 | H181: 00:00:00 | S181: 00:45:00 | T181: 00:00:00 | AC181: 0
A182: 10 | B182: Nd | C182: =C181 -> 2018-12-09 | G182: 00:45:00 | H182: 00:00:00 | S182: 00:45:00 | T182: 00:00:00 | AC182: 0
A183: 10 | B183: Nd | C183: =C182 -> 2018-12-09 | G183: 00:45:00 | H183: 00:00:00 | S183: 00:45:00 | T183: 00:00:00 | AC183: 0
A184: 10 | B184: Nd | C184: =C183 -> 2018-12-09 | G184: 00:45:00 | H184: 00:00:00 | S184: 00:45:00 | T184: 00:00:00 | AC184: 0
A185: 10 | B185: Nd | C185: =C184 -> 2018-12-09 | G185: 00:45:00 | H185: 00:00:00 | S185: 00:45:00 | T185: 00:00:00 | AC185: 0
A186: 11 | B186: Pt | C186: 2018-12-14 | D186: 16:30:00 | G186: 00:45:00 | H186: 00:00:00 | S186: 00:45:00 | T186: 00:00:00 | AC186: 0
A187: =A186 -> 11 | B187: Pt | C187: =C186 -> 2018-12-14 | G187: 00:45:00 | H187: 00:00:00 | S187: 00:45:00 | T187: 00:00:00 | AC187: 0
A188: 11 | B188: Pt | C188: =C187 -> 2018-12-14 | G188: 00:45:00 | H188: 00:00:00 | S188: 00:45:00 | T188: 00:00:00 | AC188: 0
A189: 11 | B189: Pt | C189: =C188 -> 2018-12-14 | G189: 00:45:00 | H189: 00:00:00 | S189: 00:45:00 | T189: 00:00:00 | AC189: 0
A190: 11 | B190: Pt | C190: =C189 -> 2018-12-14 | G190: 00:45:00 | H190: 00:00:00 | S190: 00:45:00 | T190: 00:00:00 | AC190: 0
A191: 11 | B191: So | C191: =C190+1 -> 2018-12-15 | D191: 07:30:00 | E191: - | F191: 09:45:00 | G191: 00:45:00 | H191: 02:15:00 | I191: 3 | K191: Lektorat
A192: 11 | B192: So | C192: =C191 -> 2018-12-15 | D192: 10:00:00 | E192: =IF(I192<>0,"-","") -> - | F192: =IF(I192<>0,D192+H192,"") -> 11:30:00 | G192: 00:45:00 | H192: =G192*I192 -> 01:30:00 | I192: 2 | K192: Analiza finansowa W. | L192: prof. K. Firlej | M192: A217
A193: 11 | B193: So | C193: =C192 -> 2018-12-15 | D193: 11:45:00 | E193: =IF(I193<>0,"-","") -> - | F193: 14:00:00 | G193: 00:45:00 | H193: =G193*I193 -> 02:15:00 | I193: 3 | K193: Analiza finansowa Ćw. | L193: prof. K. Firlej | M193: A217
A194: 11 | B194: So | C194: =C193 -> 2018-12-15 | D194: 14:15:00 | E194: =IF(I194<>0,"-","") -> - | F194: =IF(I194<>0,D194+H194,"") -> 18:00:00 | G194: 00:45:00 | H194: =G194*I194 -> 03:45:00 | I194: 5 | K194: Finanse pub. i rynki finansowe Ćw. | L194: mgr B. Partyńska-Brzegowy | M194: A217
A195: 11 | B195: So | C195: =C194 -> 2018-12-15 | E195: =IF(I195<>0,"-","") ->  | F195: =IF(I195<>0,D195+H195,"") ->  | G195: 01:45:00 | H195: =G195*I195 -> 00:00:00
A196: 11 | B196: Nd | C196: =C195+1 -> 2018-12-16 | G196: 02:45:00 | H196: 00:00:00 | S196: 00:45:00 | T196: 00:00:00 | AC196: 0
A197: 11 | B197: Nd | C197: =C196 -> 2018-12-16 | G197: 03:45:00 | H197: 00:00:00 | S197: 00:45:00 | T197: 00:00:00 | AC197: 0
A198: 11 | B198: Nd | C198: =C197 -> 2018-12-16 | G198: 04:45:00 | H198: 00:00:00 | S198: 00:45:00 | T198: 00:00:00 | AC198: 0
A199: 11 | B199: Nd | C199: =C198 -> 2018-12-16 | G199: 05:45:00 | H199: 00:00:00 | S199: 00:45:00 | T199: 00:00:00 | AC199: 0
A200: 11 | B200: Nd | C200: =C199 -> 2018-12-16 | G200: 06:45:00 | H200: 00:00:00 | S200: 00:45:00 | T200: 00:00:00 | AC200: 0
... 85 more rows

Sheet rok3
K1: WYKŁADY | M1: PL | N1: RO | O1: PO
I2: 1 | K2: Podstawy prawa (W) | L2: mgr K. Chmielarz | M2: 15 | N2: =SUMIF(K$36:K$260,K2,I$36:I$260) -> 15 | O2: =IF(M2=N2,"",M2-N2) -> 
I3: 2 | K3: System podatkowy (W) | L3: Dr K. Barwacz | M3: 15 | N3: =SUMIF(K$36:K$260,K3,I$36:I$260) -> 15
I4: 3 | K4: Formy opodatkowania małych przedsiębiorstw (W) | L4: Dr W. Sroka | M4: 10 | N4: 10
I5: 4 | K5: Finanse przedsiębiorstw (W) | L5: Prof. K. Firlej | M5: 15 | N5: 15
I6: 5 | K6: Doradztwo (W) | L6: Mgr B. Partyńska Brzegowy | M6: 10 | N6: 10
I7: 6 | K7: Rachunkowość zarządcza (W) | L7: Dr K. Stępień | M7: 15 | N7: =SUMIF(K$36:K$260,K7,I$36:I$260) -> 15
I8: 7 | N8: 0
I9: 8 | N9: 0
I10: 9 | N10: 0
I11: 10 | N11: 0
I12: 11 | N12: =SUMIF(K$36:K$260,K12,I$36:I$260) -> 0
I13: 12 | N13: =SUMIF(K$36:K$260,K13,I$36:I$260) -> 0
I14: 13 | N14: =SUMIF(K$36:K$260,K14,I$36:I$260) -> 0
I15: 14 | N15: =SUMIF(K$36:K$260,K15,I$36:I$260) -> 0
I16: 15 | N16: =SUMIF(K$36:K$260,K16,I$36:I$260) -> 0 | AA16: =IF(Y16=Z16,"",Y16-Z16) -> 
K17: ĆWICZENIA I GR | M17: =SUM(M2:M16) -> 80 | N17: =SUM(N2:N16) -> 80 | O17: =SUM(O2:O16) -> 0 | W17: ĆWICZENIA II GR | Y17: PL | Z17: RO | AA17: PO
I18: 1 | K18: Podstawy prawa (Ćw.) | L18: mgr K. Chmielarz | M18: 15 | N18: =SUMIF(K$36:K$260,K18,I$36:I$260) -> 15 | O18: =IF(M18=N18,"",M18-N18) ->  | U18: 1 | Z18: =SUMIF(W$36:W$260,W18,U$36:U$260) -> 0 | AA18: =IF(Y18=Z18,"",Y18-Z18) -> 
I19: 2 | K19: System podatkowy (Ćw.) | L19: Dr K. Barwacz | M19: 15 | N19: =SUMIF(K$36:K$260,K19,I$36:I$260) -> 15 | O19: =IF(M19=N19,"",M19-N19) ->  | U19: 2 | Z19: 0
I20: 3 | K20: Formy opodatkowania małych przedsiębiorstw (Ćw.) | L20: Dr W. Sroka | M20: 10 | N20: 10 | U20: 3 | Z20: 0
I21: 4 | K21: Finanse przedsiębiorstw (Lab. 1) | L21: Prof. K. Firlej | M21: 15 | N21: 15 | U21: 4 | Z21: 0
I22: 5 | K22: Doradztwo (Ćw.) | L22: Mgr B. Partyńska Brzegowy | M22: 10 | N22: 10 | U22: 5 | Z22: 0
I23: 6 | K23: Doradztwo (Lab. 1) | L23: Mgr B. Partyńska Bregowy | M23: 10 | N23: 10 | U23: 6 | Z23: 0
I24: 7 | K24: Zarządzanie dokumentacją przedsiębiorstwa (Lab. 1) | L24: Mgr B. Partyńska Bregowy | M24: 20 | N24: 20 | U24: 7 | Z24: 0
I25: 8 | K25: Obrót papierami wartościowymi (Lab. 1) | L25: mgr P. Brzegowy | M25: 15 | N25: 15 | U25: 8 | Z25: 0
I26: 9 | K26: Rachunkowość zarządcza (Ćw.) | L26: Dr K. Stępień | M26: 15 | N26: 15 | U26: 9 | Z26: 0
I27: 10 | K27: Seminarium 1 | L27: dr J. Mikołajczyk | M27: 20 | N27: 20 | U27: 10 | Z27: 0
I28: 11 | N28: 0 | U28: 11 | W28: Seminarium 2 | X28: Dr W. Sroka | Y28: 20 | Z28: 20
I29: 12 | N29: =SUMIF(K$36:K$260,K29,I$36:I$260) -> 0 | O29: =IF(M29=N29,"",M29-N29) ->  | U29: 12 | Z29: 0
I30: 13 | N30: =SUMIF(K$36:K$260,K30,I$36:I$260) -> 0 | O30: =IF(M30=N30,"",M30-N30) ->  | U30: 13 | Z30: 0
I31: 14 | N31: =SUMIF(K$36:K$260,K31,I$36:I$260) -> 0 | O31: =IF(M31=N31,"",M31-N31) ->  | U31: 14 | Z31: 0
I32: 15 | N32: =SUMIF(K$36:K$260,K32,I$36:I$260) -> 0 | O32: =IF(M32=N32,"",M32-N32) ->  | U32: 15 | Z32: 0
C33: III r. 1 gr. | D33: ! ! ! | F33: =I33-N34 -> 0 | I33: =SUM(I36:I260) -> 225 | M33: =SUM(M18:M32) -> 145 | N33: =SUM(N18:N32) -> 145 | O33: =SUM(O18:O32) -> 0 | P33: ! ! ! | R33: =U33-Z33 -> 0 | U33: =SUM(U36:U260) -> 20 | Y33: =SUM(Y2:Y32) -> 20 | Z33: =SUM(Z2:Z32) -> 20
C34: III r. 2 gr. | L34: wykł+ćw | M34: =M17+M33 -> 225 | N34: =N17+N33 -> 225 | O34: =O17+O33 -> 0
A35: ZJ. | B35: DZIEŃ | C35: DATA | D35: POCZ | F35: KON | G35: & | H35: cz trw | I35: G | K35: PRZEDMIOT | L35: WYKŁADOWCA | M35: SALA | P35: POCZ | R35: KON | S35: & | T35: cz trw | U35: G | W35: PRZEDMIOT | X35: WYKŁADOWCA | Y35: SALA
A36: 1 | B36: Pt | C36: 2018-10-05 | D36: 16:30:00 | F36: =IF(I36<>0,D36+H36,"") ->  | G36: 00:45:00 | H36: =G36*I36 -> 00:00:00 | Q36: =IF(U36<>0,"-","") ->  | R36: =IF(U36<>0,P36+T36,"") ->  | S36: 00:45:00 | T36: =S36*U36 -> 00:00:00 | AB36: =L36&X36 ->  | AC36: =I36+U36 -> 0
A37: =A36 -> 1 | B37: Pt | C37: =C36 -> 2018-10-05 | E37: =IF(I37<>0,"-","") ->  | G37: 00:45:00 | H37: 00:00:00 | S37: 00:45:00 | T37: 00:00:00 | AC37: 0
A38: 1 | B38: Pt | C38: =C37 -> 2018-10-05 | G38: 00:45:00 | H38: 00:00:00 | S38: 00:45:00 | T38: 00:00:00 | AC38: 0
A39: 1 | B39: Pt | C39: =C38 -> 2018-10-05 | G39: 00:45:00 | H39: 00:00:00 | S39: 00:45:00 | T39: 00:00:00 | AC39: 0
A40: 1 | B40: Pt | C40: =C39 -> 2018-10-05 | G40: 00:45:00 | H40: 00:00:00 | S40: 00:45:00 | T40: 00:00:00 | AC40: 0
A41: 1 | B41: So | C41: =C40+1 -> 2018-10-06 | G41: 00:45:00 | H41: 00:00:00 | S41: 00:45:00 | T41: 00:00:00 | AC41: 0
A42: 1 | B42: So | C42: =C41 -> 2018-10-06 | G42: 00:45:00 | H42: 00:00:00 | S42: 00:45:00 | T42: 00:00:00 | AC42: 0
A43: 1 | B43: So | C43: =C42 -> 2018-10-06 | G43: 00:45:00 | H43: 00:00:00 | S43: 00:45:00 | T43: 00:00:00 | AC43: 0
A44: 1 | B44: So | C44: =C43 -> 2018-10-06 | G44: 00:45:00 | H44: 00:00:00 | S44: 00:45:00 | T44: 00:00:00 | AC44: 0
A45: 1 | B45: So | C45: =C44 -> 2018-10-06 | G45: 00:45:00 | H45: 00:00:00 | S45: 00:45:00 | T45: 00:00:00 | AC45: 0
A46: 1 | B46: Nd | C46: =C45+1 -> 2018-10-07 | G46: 00:45:00 | H46: 00:00:00 | S46: 00:45:00 | T46: 00:00:00 | AC46: 0
A47: 1 | B47: Nd | C47: =C46 -> 2018-10-07 | G47: 00:45:00 | H47: 00:00:00 | S47: 00:45:00 | T47: 00:00:00 | AC47: 0
A48: 1 | B48: Nd | C48: =C47 -> 2018-10-07 | G48: 00:45:00 | H48: 00:00:00 | S48: 00:45:00 | T48: 00:00:00 | AC48: 0
A49: 1 | B49: Nd | C49: =C48 -> 2018-10-07 | G49: 00:45:00 | H49: 00:00:00 | S49: 00:45:00 | T49: 00:00:00 | AC49: 0
A50: 1 | B50: Nd | C50: =C49 -> 2018-10-07 | G50: 00:45:00 | H50: 00:00:00 | S50: 00:45:00 | T50: 00:00:00 | AC50: 0
A51: 2 | B51: Pt | C51: =C36+7 -> 2018-10-12 | D51: 16:30:00 | E51: - | F51: 19:30:00 | G51: 00:45:00 | H51: 03:00:00 | I51: 4 | K51: Podstawy prawa (W) | L51: mgr K. Chmielarz | M51: A211 | S51: 00:45:00 | T51: 00:00:00 | AB51: mgr K. Chmielarz | AC51: 4
A52: =A51 -> 2 | B52: Pt | C52: =C51 -> 2018-10-12 | G52: 00:45:00 | H52: 00:00:00 | S52: 00:45:00 | T52: 00:00:00 | AC52: 0
A53: 2 | B53: Pt | C53: =C52 -> 2018-10-12 | G53: 00:45:00 | H53: 00:00:00 | S53: 00:45:00 | T53: 00:00:00 | AC53: 0
A54: 2 | B54: Pt | C54: =C53 -> 2018-10-12 | G54: 00:45:00 | H54: 00:00:00 | S54: 00:45:00 | T54: 00:00:00 | AC54: 0
A55: 2 | B55: Pt | C55: =C54 -> 2018-10-12 | G55: 00:45:00 | H55: 00:00:00 | S55: 00:45:00 | T55: 00:00:00 | AC55: 0
A56: 2 | B56: So | C56: =C55+1 -> 2018-10-13 | D56: 09:00:00 | G56: 00:45:00 | H56: 00:00:00 | P56: 09:00:00 | Q56: - | R56: 12:45:00 | S56: 00:45:00 | T56: 03:45:00 | U56: 5 | W56: Seminarium 2 | X56: Dr W. Sroka | Y56: A211 | AB56: Dr W. Sroka | AC56: 5
A57: 2 | B57: So | C57: =C56 -> 2018-10-13 | D57: 11:00:00 | E57: - | F57: 13:15:00 | G57: 00:45:00 | H57: 02:15:00 | I57: 3 | K57: System podatkowy (W) | L57: Dr K. Barwacz | M57: A211 | S57: 00:45:00 | T57: 00:00:00 | AB57: Dr K. Barwacz | AC57: 3
A58: 2 | B58: So | C58: =C57 -> 2018-10-13 | D58: 13:45:00 | E58: - | F58: 16:45:00 | G58: 00:45:00 | H58: 03:00:00 | I58: 4 | K58: System podatkowy (Ćw.) | L58: Dr K. Barwacz | M58: A211 | S58: 00:45:00 | T58: 00:00:00 | AB58: Dr K. Barwacz | AC58: 4
A59: 2 | B59: So | C59: =C58 -> 2018-10-13 | S59: 00:45:00 | T59: 00:00:00 | AC59: 0
A60: 2 | B60: So | C60: =C59 -> 2018-10-13 | G60: 00:45:00 | H60: 00:00:00 | S60: 00:45:00 | T60: 00:00:00 | AC60: 0
A61: 2 | B61: Nd | C61: =C60+1 -> 2018-10-14 | E61: =IF(I61<>0,"-","") ->  | F61: =IF(I61<>0,D61+H61,"") ->  | G61: 00:45:00 | H61: =G61*I61 -> 00:00:00 | S61: 00:45:00 | T61: 00:00:00 | AC61: 0
A62: 2 | B62: Nd | C62: =C61 -> 2018-10-14 | E62: =IF(I62<>0,"-","") ->  | F62: =IF(I62<>0,D62+H62,"") ->  | G62: 00:45:00 | H62: =G62*I62 -> 00:00:00 | S62: 00:45:00 | T62: 00:00:00 | AC62: 0
A63: 2 | B63: Nd | C63: =C62 -> 2018-10-14 | G63: 00:45:00 | H63: 00:00:00 | S63: 00:45:00 | T63: 00:00:00 | AC63: 0
A64: 2 | B64: Nd | C64: =C63 -> 2018-10-14 | G64: 00:45:00 | H64: 00:00:00 | S64: 00:45:00 | T64: 00:00:00 | AC64: 0
A65: 2 | B65: Nd | C65: =C64 -> 2018-10-14 | G65: 00:45:00 | H65: 00:00:00 | S65: 00:45:00 | T65: 00:00:00 | AC65: 0
A66: 3 | B66: Pt | C66: =C51+7 -> 2018-10-19 | D66: 16:30:00 | E66: - | F66: 20:15:00 | G66: 00:45:00 | H66: 03:45:00 | I66: 5 | K66: Obrót papierami wartościowymi (Lab. 1) | L66: mgr P. Brzegowy | M66: A203 | S66: 00:45:00 | T66: 00:00:00 | AB66: mgr P. Brzegowy | AC66: 5
A67: =A66 -> 3 | B67: Pt | C67: =C66 -> 2018-10-19 | G67: 00:45:00 | H67: 00:00:00 | S67: 00:45:00 | T67: 00:00:00 | AC67: 0
A68: 3 | B68: Pt | C68: =C67 -> 2018-10-19 | G68: 00:45:00 | H68: 00:00:00 | S68: 00:45:00 | T68: 00:00:00 | AC68: 0
A69: 3 | B69: Pt | C69: =C68 -> 2018-10-19 | G69: 00:45:00 | H69: 00:00:00 | S69: 00:45:00 | T69: 00:00:00 | AC69: 0
A70: 3 | B70: Pt | C70: =C69 -> 2018-10-19 | G70: 00:45:00 | H70: 00:00:00 | S70: 00:45:00 | T70: 00:00:00 | AC70: 0
A71: 3 | B71: So | C71: =C70+1 -> 2018-10-20 | D71: 09:00:00 | E71: =IF(I71<>0,"-","") -> - | F71: =IF(I71<>0,D71+H71,"") -> 12:45:00 | G71: 00:45:00 | H71: =G71*I71 -> 03:45:00 | I71: 5 | K71: Zarządzanie dokumentacją przedsiębiorstwa (Lab. 1) | L71: Mgr B. Partyńska Bregowy | M71: C313 | S71: 00:45:00 | T71: 00:00:00 | AB71: Mgr B. Partyńska Bregowy | AC71: 5
A72: 3 | B72: So | C72: =C71 -> 2018-10-20 | D72: 13:15:00 | E72: - | F72: 17:00:00 | G72: 00:45:00 | H72: 03:45:00 | I72: 5 | K72: Seminarium 1 | L72: dr J. Mikołajczyk | M72: A211 | S72: 00:45:00 | T72: 00:00:00 | AB72: dr J. Mikołajczyk | AC72: 5
A73: 3 | B73: So | C73: =C72 -> 2018-10-20 | G73: 00:45:00 | H73: 00:00:00 | S73: 00:45:00 | T73: 00:00:00 | AC73: 0
A74: 3 | B74: So | C74: =C73 -> 2018-10-20 | G74: 00:45:00 | H74: 00:00:00 | S74: 00:45:00 | T74: 00:00:00 | AC74: 0
A75: 3 | B75: So | C75: =C74 -> 2018-10-20 | G75: 00:45:00 | H75: 00:00:00 | S75: 00:45:00 | T75: 00:00:00 | AC75: 0
A76: 3 | B76: Nd | C76: =C75+1 -> 2018-10-21 | G76: 00:45:00 | H76: 00:00:00 | S76: 00:45:00 | T76: 00:00:00 | AC76: 0
A77: 3 | B77: Nd | C77: =C76 -> 2018-10-21 | G77: 00:45:00 | H77: 00:00:00 | S77: 00:45:00 | T77: 00:00:00 | AC77: 0
A78: 3 | B78: Nd | C78: =C77 -> 2018-10-21 | G78: 00:45:00 | H78: 00:00:00 | S78: 00:45:00 | T78: 00:00:00 | AC78: 0
A79: 3 | B79: Nd | C79: =C78 -> 2018-10-21 | G79: 00:45:00 | H79: 00:00:00 | S79: 00:45:00 | T79: 00:00:00 | AC79: 0
A80: 3 | B80: Nd | C80: =C79 -> 2018-10-21 | G80: 00:45:00 | H80: 00:00:00 | S80: 00:45:00 | T80: 00:00:00 | AC80: 0
A81: 4 | B81: Pt | C81: =C66+7 -> 2018-10-26 | D81: 16:30:00 | E81: - | F81: 20:15:00 | G81: 00:45:00 | H81: 03:45:00 | I81: 5 | K81: Zarządzanie dokumentacją przedsiębiorstwa (Lab. 1) | L81: Mgr B. Partyńska Bregowy | M81: A203 | S81: 00:45:00 | T81: 00:00:00 | AB81: Mgr B. Partyńska Bregowy | AC81: 5
A82: =A81 -> 4 | B82: Pt | C82: =C81 -> 2018-10-26 | G82: 00:45:00 | H82: 00:00:00 | S82: 00:45:00 | T82: 00:00:00 | AC82: 0
A83: 4 | B83: Pt | C83: =C82 -> 2018-10-26 | G83: 00:45:00 | H83: 00:00:00 | S83: 00:45:00 | T83: 00:00:00 | AC83: 0
A84: 4 | B84: Pt | C84: =C83 -> 2018-10-26 | G84: 00:45:00 | H84: 00:00:00 | S84: 00:45:00 | T84: 00:00:00 | AC84: 0
A85: 4 | B85: Pt | C85: =C84 -> 2018-10-26 | G85: 00:45:00 | H85: 00:00:00 | S85: 00:45:00 | T85: 00:00:00 | AC85: 0
A86: 4 | B86: So | C86: =C85+1 -> 2018-10-27 | D86: 08:15:00 | E86: - | F86: 12:00:00 | G86: 00:45:00 | H86: 03:45:00 | I86: 5 | K86: Formy opodatkowania małych przedsiębiorstw (W) | L86: Dr W. Sroka | M86: A211 | S86: 00:45:00 | T86: 00:00:00 | AB86: Dr W. Sroka | AC86: 5
A87: 4 | B87: So | C87: =C86 -> 2018-10-27 | D87: 12:30:00 | E87: - | F87: 15:30:00 | G87: 00:45:00 | H87: 03:00:00 | I87: 4 | K87: Formy opodatkowania małych przedsiębiorstw (Ćw.) | L87: Dr W. Sroka | M87: A211 | S87: 00:45:00 | T87: 00:00:00 | AB87: Dr W. Sroka | AC87: 4
A88: 4 | B88: So | C88: =C87 -> 2018-10-27 | D88: 16:00:00 | E88: - | F88: 19:00:00 | G88: 00:45:00 | H88: 03:00:00 | I88: 4 | K88: Finanse przedsiębiorstw (W) | L88: Prof. K. Firlej | M88: A211 | S88: 00:45:00 | T88: 00:00:00 | AB88: Prof. K. Firlej | AC88: 4
A89: 4 | B89: So | C89: =C88 -> 2018-10-27 | G89: 00:45:00 | H89: 00:00:00 | S89: 00:45:00 | T89: 00:00:00 | AC89: 0
A90: 4 | B90: So | C90: =C89 -> 2018-10-27 | G90: 00:45:00 | H90: 00:00:00 | S90: 00:45:00 | T90: 00:00:00 | AC90: 0
A91: 4 | B91: Nd | C91: =C90+1 -> 2018-10-28 | D91: 09:00:00 | E91: - | F91: 12:00:00 | G91: 00:45:00 | H91: 03:00:00 | I91: 4 | K91: System podatkowy (W) | L91: Dr K. Barwacz | M91: A211 | S91: 00:45:00 | T91: 00:00:00 | AB91: Dr K. Barwacz | AC91: 4
A92: 4 | B92: Nd | C92: =C91 -> 2018-10-28 | D92: 12:30:00 | E92: - | F92: 15:30:00 | G92: 00:45:00 | H92: 03:00:00 | I92: 4 | K92: System podatkowy (Ćw.) | L92: Dr K. Barwacz | M92: A211 | S92: 00:45:00 | T92: 00:00:00 | AB92: Dr K. Barwacz | AC92: 4
A93: 4 | B93: Nd | C93: =C92 -> 2018-10-28 | D93: 16:00:00 | E93: - | F93: 17:30:00 | G93: 00:45:00 | H93: 01:30:00 | I93: 2 | K93: Rachunkowość zarządcza (W) | L93: Dr K. Stępień | M93: A211 | S93: 00:45:00 | T93: 00:00:00 | AB93: Dr K. Stępień | AC93: 2
A94: 4 | B94: Nd | C94: =C93 -> 2018-10-28 | D94: 17:45:00 | E94: - | F94: 20:00:00 | G94: 00:45:00 | H94: 02:15:00 | I94: 3 | K94: Rachunkowość zarządcza (Ćw.) | L94: Dr K. Stępień | M94: A211 | S94: 00:45:00 | T94: 00:00:00 | AB94: Dr K. Stępień | AC94: 3
A95: 4 | B95: Nd | C95: =C94 -> 2018-10-28 | G95: 00:45:00 | H95: 00:00:00 | S95: 00:45:00 | T95: 00:00:00 | AC95: 0
A96: 5 | B96: Pt | C96: 2018-11-02 | E96: =IF(I96<>0,"-","") ->  | F96: =IF(I96<>0,D96+H96,"") ->  | G96: 00:45:00 | H96: =G96*I96 -> 00:00:00 | S96: 00:45:00 | T96: 00:00:00 | AC96: 0
A97: =A96 -> 5 | B97: Pt | C97: =C96 -> 2018-11-02 | E97: =IF(I97<>0,"-","") ->  | F97: =IF(I97<>0,D97+H97,"") ->  | G97: 00:45:00 | H97: =G97*I97 -> 00:00:00 | S97: 00:45:00 | T97: 00:00:00 | AC97: 0
A98: 5 | B98: Pt | C98: =C97 -> 2018-11-02 | G98: 00:45:00 | H98: 00:00:00 | S98: 00:45:00 | T98: 00:00:00 | AC98: 0
A99: 5 | B99: Pt | C99: =C98 -> 2018-11-02 | G99: 00:45:00 | H99: 00:00:00 | S99: 00:45:00 | T99: 00:00:00 | AC99: 0
A100: 5 | B100: Pt | C100: =C99 -> 2018-11-02 | E100: =IF(I100<>0,"-","") ->  | F100: =IF(I100<>0,D100+H100,"") ->  | G100: 00:45:00 | H100: =G100*I100 -> 00:00:00 | Q100: =IF(U100<>0,"-","") ->  | R100: =IF(U100<>0,P100+T100,"") ->  | S100: 00:45:00 | T100: =S100*U100 -> 00:00:00 | AB100: =L100&X100 ->  | AC100: =I100+U100 -> 0
A101: 5 | B101: So | C101: =C100+1 -> 2018-11-03 | G101: 00:45:00 | H101: 00:00:00 | S101: 00:45:00 | T101: 00:00:00 | AC101: 0
A102: 5 | B102: So | C102: =C101 -> 2018-11-03 | G102: 00:45:00 | H102: 00:00:00 | S102: 00:45:00 | T102: 00:00:00 | AC102: 0
A103: 5 | B103: So | C103: =C102 -> 2018-11-03 | G103: 00:45:00 | H103: 00:00:00 | S103: 00:45:00 | T103: 00:00:00 | AC103: 0
A104: 5 | B104: So | C104: =C103 -> 2018-11-03 | G104: 00:45:00 | H104: 00:00:00 | S104: 00:45:00 | T104: 00:00:00 | AC104: 0
A105: 5 | B105: So | C105: =C104 -> 2018-11-03 | G105: 00:45:00 | H105: 00:00:00 | S105: 00:45:00 | T105: 00:00:00 | AC105: 0
A106: 5 | B106: Nd | C106: =C105+1 -> 2018-11-04 | G106: 00:45:00 | H106: 00:00:00 | S106: 00:45:00 | T106: 00:00:00 | AC106: 0
A107: 5 | B107: Nd | C107: =C106 -> 2018-11-04 | G107: 00:45:00 | H107: 00:00:00 | S107: 00:45:00 | T107: 00:00:00 | AC107: 0
A108: 5 | B108: Nd | C108: =C107 -> 2018-11-04 | G108: 00:45:00 | H108: 00:00:00 | S108: 00:45:00 | T108: 00:00:00 | AC108: 0
A109: 5 | B109: Nd | C109: =C108 -> 2018-11-04 | G109: 00:45:00 | H109: 00:00:00 | S109: 00:45:00 | T109: 00:00:00 | AC109: 0
A110: 5 | B110: Nd | C110: =C109 -> 2018-11-04 | G110: 00:45:00 | H110: 00:00:00 | S110: 00:45:00 | T110: 00:00:00 | AC110: 0
A111: 6 | B111: Pt | C111: 2018-11-09 | D111: 16:30:00 | E111: - | F111: 19:30:00 | G111: 00:45:00 | H111: 03:00:00 | I111: 4 | K111: Podstawy prawa (Ćw.) | L111: mgr K. Chmielarz | M111: A211 | S111: 00:45:00 | T111: 00:00:00 | AB111: mgr K. Chmielarz | AC111: 4
A112: =A111 -> 6 | B112: Pt | C112: =C111 -> 2018-11-09 | G112: 00:45:00 | H112: 00:00:00 | S112: 00:45:00 | T112: 00:00:00 | AC112: 0
A113: 6 | B113: Pt | C113: =C112 -> 2018-11-09 | G113: 00:45:00 | H113: 00:00:00 | S113: 00:45:00 | T113: 00:00:00 | AC113: 0
A114: 6 | B114: Pt | C114: =C113 -> 2018-11-09 | G114: 00:45:00 | H114: 00:00:00 | S114: 00:45:00 | T114: 00:00:00 | AC114: 0
A115: 6 | B115: Pt | C115: =C114 -> 2018-11-09 | G115: 00:45:00 | H115: 00:00:00 | S115: 00:45:00 | T115: 00:00:00 | AC115: 0
A116: 6 | B116: So | C116: =C115+1 -> 2018-11-10 | G116: 00:45:00 | H116: 00:00:00 | S116: 00:45:00 | T116: 00:00:00 | AC116: 0
A117: 6 | B117: So | C117: =C116 -> 2018-11-10 | G117: 00:45:00 | H117: 00:00:00 | S117: 00:45:00 | T117: 00:00:00 | AC117: 0
A118: 6 | B118: So | C118: =C117 -> 2018-11-10 | G118: 00:45:00 | H118: 00:00:00 | S118: 00:45:00 | T118: 00:00:00 | AC118: 0
A119: 6 | B119: So | C119: =C118 -> 2018-11-10 | G119: 00:45:00 | H119: 00:00:00 | S119: 00:45:00 | T119: 00:00:00 | AC119: 0
A120: 6 | B120: So | C120: =C119 -> 2018-11-10 | G120: 00:45:00 | H120: 00:00:00 | S120: 00:45:00 | T120: 00:00:00 | AC120: 0
A121: 6 | B121: Nd | C121: =C120+1 -> 2018-11-11 | G121: 00:45:00 | H121: 00:00:00 | S121: 00:45:00 | T121: 00:00:00 | AC121: 0
A122: 6 | B122: Nd | C122: =C121 -> 2018-11-11 | G122: 00:45:00 | H122: 00:00:00 | S122: 00:45:00 | T122: 00:00:00 | AC122: 0
A123: 6 | B123: Nd | C123: =C122 -> 2018-11-11 | G123: 00:45:00 | H123: 00:00:00 | S123: 00:45:00 | T123: 00:00:00 | AC123: 0
A124: 6 | B124: Nd | C124: =C123 -> 2018-11-11 | G124: 00:45:00 | H124: 00:00:00 | S124: 00:45:00 | T124: 00:00:00 | AC124: 0
A125: 6 | B125: Nd | C125: =C124 -> 2018-11-11 | G125: 00:45:00 | H125: 00:00:00 | S125: 00:45:00 | T125: 00:00:00 | AC125: 0
A126: 7 | B126: Pt | C126: =C111+7 -> 2018-11-16 | D126: 16:30:00 | E126: - | F126: 18:00:00 | G126: 00:45:00 | H126: 01:30:00 | I126: 2 | K126: Doradztwo (W) | L126: Mgr B. Partyńska Brzegowy | M126: A211 | S126: 00:45:00 | T126: 00:00:00 | AB126: Mgr B. Partyńska Brzegowy | AC126: 2
A127: =A126 -> 7 | B127: Pt | C127: =C126 -> 2018-11-16 | D127: 18:15:00 | E127: - | F127: 19:45:00 | G127: 00:45:00 | H127: 01:30:00 | I127: 2 | K127: Doradztwo (Ćw.) | L127: Mgr B. Partyńska Brzegowy | M127: A211 | S127: 00:45:00 | T127: 00:00:00 | AB127: Mgr B. Partyńska Brzegowy | AC127: 2
A128: 7 | B128: Pt | C128: =C127 -> 2018-11-16 | G128: 00:45:00 | H128: 00:00:00 | S128: 00:45:00 | T128: 00:00:00 | AC128: 0
A129: 7 | B129: Pt | C129: =C128 -> 2018-11-16 | G129: 00:45:00 | H129: 00:00:00 | S129: 00:45:00 | T129: 00:00:00 | AC129: 0
A130: 7 | B130: Pt | C130: =C129 -> 2018-11-16 | G130: 00:45:00 | H130: 00:00:00 | S130: 00:45:00 | T130: 00:00:00 | AC130: 0
A131: 7 | B131: So | C131: =C130+1 -> 2018-11-17 | D131: 09:00:00 | E131: - | F131: 12:45:00 | G131: 00:45:00 | H131: 03:45:00 | I131: 5 | K131: Seminarium 1 | L131: dr J. Mikołajczyk | M131: A211 | S131: 00:45:00 | T131: 00:00:00 | AB131: dr J. Mikołajczyk | AC131: 5
A132: 7 | B132: So | C132: =C131 -> 2018-11-17 | D132: 13:00:00 | E132: - | F132: 16:00:00 | G132: 00:45:00 | H132: 03:00:00 | I132: 4 | K132: Finanse przedsiębiorstw (Lab. 1) | L132: Prof. K. Firlej | M132: A204 | AB132: Prof. K. Firlej | AC132: 4
A133: 7 | B133: So | C133: =C132 -> 2018-11-17 | G133: 00:45:00 | H133: 00:00:00 | S133: 00:45:00 | T133: 00:00:00 | AC133: 0
A134: 7 | B134: So | C134: =C133 -> 2018-11-17 | S134: 00:45:00 | T134: 00:00:00 | AC134: 0
A135: 7 | B135: So | C135: =C134 -> 2018-11-17 | G135: 00:45:00 | H135: 00:00:00 | S135: 00:45:00 | T135: 00:00:00 | AC135: 0
A136: 7 | B136: Nd | C136: =C135+1 -> 2018-11-18 | G136: 00:45:00 | H136: 00:00:00 | S136: 00:45:00 | T136: 00:00:00 | AC136: 0
A137: 7 | B137: Nd | C137: =C136 -> 2018-11-18 | G137: 00:45:00 | H137: 00:00:00 | S137: 00:45:00 | T137: 00:00:00 | AC137: 0
A138: 7 | B138: Nd | C138: =C137 -> 2018-11-18 | G138: 00:45:00 | H138: 00:00:00 | S138: 00:45:00 | T138: 00:00:00 | AC138: 0
A139: 7 | B139: Nd | C139: =C138 -> 2018-11-18 | G139: 00:45:00 | H139: 00:00:00 | S139: 00:45:00 | T139: 00:00:00 | AC139: 0
A140: 7 | B140: Nd | C140: =C139 -> 2018-11-18 | G140: 00:45:00 | H140: 00:00:00 | S140: 00:45:00 | T140: 00:00:00 | AC140: 0
A141: 8 | B141: Pt | C141: =C126+7 -> 2018-11-23 | D141: 16:30:00 | E141: - | F141: 20:15:00 | G141: 00:45:00 | H141: 03:45:00 | I141: 5 | K141: Zarządzanie dokumentacją przedsiębiorstwa (Lab. 1) | L141: Mgr B. Partyńska Bregowy | M141: A203 | S141: 00:45:00 | T141: 00:00:00 | AB141: Mgr B. Partyńska Bregowy | AC141: 5
A142: =A141 -> 8 | B142: Pt | C142: =C141 -> 2018-11-23 | G142: 00:45:00 | H142: 00:00:00 | S142: 00:45:00 | T142: 00:00:00 | AC142: 0
A143: 8 | B143: Pt | C143: =C142 -> 2018-11-23 | G143: 00:45:00 | H143: 00:00:00 | S143: 00:45:00 | T143: 00:00:00 | AC143: 0
A144: 8 | B144: Pt | C144: =C143 -> 2018-11-23 | G144: 00:45:00 | H144: 00:00:00 | S144: 00:45:00 | T144: 00:00:00 | AC144: 0
A145: 8 | B145: Pt | C145: =C144 -> 2018-11-23 | G145: 00:45:00 | H145: 00:00:00 | S145: 00:45:00 | T145: 00:00:00 | AC145: 0
A146: 8 | B146: So | C146: =C145+1 -> 2018-11-24 | G146: 00:45:00 | H146: 00:00:00 | S146: 00:45:00 | T146: 00:00:00 | AC146: 0
A147: 8 | B147: So | C147: =C146 -> 2018-11-24 | G147: 00:45:00 | H147: 00:00:00 | S147: 00:45:00 | T147: 00:00:00 | AC147: 0
A148: 8 | B148: So | C148: =C147 -> 2018-11-24 | S148: 00:45:00 | T148: 00:00:00 | AC148: 0
A149: 8 | B149: So | C149: =C148 -> 2018-11-24 | D149: 11:15:00 | E149: - | F149: 14:15:00 | G149: 00:45:00 | H149: 03:00:00 | I149: 4 | K149: Podstawy prawa (W) | L149: mgr K. Chmielarz | M149: A211 | S149: 00:45:00 | T149: 00:00:00 | AB149: mgr K. Chmielarz | AC149: 4
A150: 8 | B150: So | C150: =C149 -> 2018-11-24 | D150: 14:30:00 | E150: - | F150: 17:30:00 | G150: 00:45:00 | H150: 03:00:00 | I150: 4 | K150: Finanse przedsiębiorstw (W) | L150: Prof. K. Firlej | M150: A211 | S150: 00:45:00 | T150: 00:00:00 | AB150: Prof. K. Firlej | AC150: 4
A151: 8 | B151: Nd | C151: =C150+1 -> 2018-11-25 | G151: 00:45:00 | H151: 00:00:00 | S151: 00:45:00 | T151: 00:00:00 | AC151: 0
A152: 8 | B152: Nd | C152: =C151 -> 2018-11-25 | G152: 00:45:00 | H152: 00:00:00 | S152: 00:45:00 | T152: 00:00:00 | AC152: 0
A153: 8 | B153: Nd | C153: =C152 -> 2018-11-25 | G153: 00:45:00 | H153: 00:00:00 | S153: 00:45:00 | T153: 00:00:00 | AC153: 0
A154: 8 | B154: Nd | C154: =C153 -> 2018-11-25 | G154: 00:45:00 | H154: 00:00:00 | S154: 00:45:00 | T154: 00:00:00 | AC154: 0
A155: 8 | B155: Nd | C155: =C154 -> 2018-11-25 | G155: 00:45:00 | H155: 00:00:00 | S155: 00:45:00 | T155: 00:00:00 | AC155: 0
A156: 9 | B156: Pt | C156: =C141+7 -> 2018-11-30 | D156: 16:30:00 | E156: - | F156: 19:30:00 | G156: 00:45:00 | H156: 03:00:00 | I156: 4 | K156: Podstawy prawa (W) | L156: mgr K. Chmielarz | M156: A211 | S156: 00:45:00 | T156: 00:00:00 | AB156: mgr K. Chmielarz | AC156: 4
A157: =A156 -> 9 | B157: Pt | C157: =C156 -> 2018-11-30 | G157: 00:45:00 | H157: 00:00:00 | S157: 00:45:00 | T157: 00:00:00 | AC157: 0
A158: 9 | B158: Pt | C158: =C157 -> 2018-11-30 | G158: 00:45:00 | H158: 00:00:00 | S158: 00:45:00 | T158: 00:00:00 | AC158: 0
A159: 9 | B159: Pt | C159: =C158 -> 2018-11-30 | G159: 00:45:00 | H159: 00:00:00 | S159: 00:45:00 | T159: 00:00:00 | AC159: 0
A160: 9 | B160: Pt | C160: =C159 -> 2018-11-30 | G160: 00:45:00 | H160: 00:00:00 | S160: 00:45:00 | T160: 00:00:00 | AC160: 0
A161: 9 | B161: So | C161: =C160+1 -> 2018-12-01 | S161: 00:45:00 | T161: 00:00:00 | AC161: 0
A162: 9 | B162: So | C162: =C161 -> 2018-12-01 | D162: 12:15:00 | E162: - | F162: 14:30:00 | G162: 00:45:00 | H162: 02:15:00 | I162: 3 | K162: Formy opodatkowania małych przedsiębiorstw (Ćw.) | L162: Dr W. Sroka | M162: A211 | S162: 00:45:00 | T162: 00:00:00 | AB162: Dr W. Sroka | AC162: 3
A163: 9 | B163: So | C163: =C162 -> 2018-12-01 | D163: 15:00:00 | E163: - | F163: 16:30:00 | G163: 00:45:00 | H163: 01:30:00 | I163: 2 | K163: Finanse przedsiębiorstw (W) | L163: Prof. K. Firlej | M163: A211 | S163: 00:45:00 | T163: 00:00:00 | AB163: Prof. K. Firlej | AC163: 2
A164: 9 | B164: So | C164: =C163 -> 2018-12-01 | D164: 16:45:00 | E164: =IF(I164<>0,"-","") -> - | F164: =IF(I164<>0,D164+H164,"") -> 19:45:00 | G164: 00:45:00 | H164: =G164*I164 -> 03:00:00 | I164: 4 | K164: Finanse przedsiębiorstw (Lab. 1) | L164: Prof. K. Firlej | M164: A204 | Q164: =IF(U164<>0,"-","") ->  | R164: =IF(U164<>0,P164+T164,"") ->  | S164: 00:45:00 | T164: =S164*U164 -> 00:00:00 | AB164: =L164&X164 -> Prof. K. Firlej | AC164: =I164+U164 -> 4
A165: 9 | B165: So | C165: =C164 -> 2018-12-01 | G165: 00:45:00 | H165: 00:00:00 | S165: 00:45:00 | T165: 00:00:00 | AC165: 0
A166: 9 | B166: Nd | C166: =C165+1 -> 2018-12-02 | S166: 00:45:00 | T166: 00:00:00 | AC166: 0
A167: 9 | B167: Nd | C167: =C166 -> 2018-12-02 | D167: 14:15:00 | E167: - | F167: 17:15:00 | G167: 00:45:00 | H167: 03:00:00 | I167: 4 | K167: Rachunkowość zarządcza (W) | L167: Dr K. Stępień | M167: A211 | S167: 00:45:00 | T167: 00:00:00 | AB167: Dr K. Stępień | AC167: 4
A168: 9 | B168: Nd | C168: =C167 -> 2018-12-02 | D168: 17:30:00 | E168: - | F168: 19:45:00 | G168: 00:45:00 | H168: 02:15:00 | I168: 3 | K168: Rachunkowość zarządcza (Ćw.) | L168: Dr K. Stępień | M168: A211 | S168: 00:45:00 | T168: 00:00:00 | AB168: Dr K. Stępień | AC168: 3
A169: 9 | B169: Nd | C169: =C168 -> 2018-12-02 | G169: 00:45:00 | H169: 00:00:00 | S169: 00:45:00 | T169: 00:00:00 | AC169: 0
A170: 9 | B170: Nd | C170: =C169 -> 2018-12-02 | G170: 00:45:00 | H170: 00:00:00 | S170: 00:45:00 | T170: 00:00:00 | AC170: 0
A171: 10 | B171: Pt | C171: =C156+7 -> 2018-12-07 | D171: 16:30:00 | E171: - | F171: 20:15:00 | G171: 00:45:00 | H171: 03:45:00 | I171: 5 | K171: Doradztwo (Lab. 1) | L171: Mgr B. Partyńska Bregowy | M171: A203 | S171: 00:45:00 | T171: 00:00:00 | AB171: Mgr B. Partyńska Bregowy | AC171: 5
A172: =A171 -> 10 | B172: Pt | C172: =C171 -> 2018-12-07 | G172: 00:45:00 | H172: 00:00:00 | S172: 00:45:00 | T172: 00:00:00 | AC172: 0
A173: 10 | B173: Pt | C173: =C172 -> 2018-12-07 | G173: 00:45:00 | H173: 00:00:00 | S173: 00:45:00 | T173: 00:00:00 | AC173: 0
A174: 10 | B174: Pt | C174: =C173 -> 2018-12-07 | G174: 00:45:00 | H174: 00:00:00 | S174: 00:45:00 | T174: 00:00:00 | AC174: 0
A175: 10 | B175: Pt | C175: =C174 -> 2018-12-07 | G175: 00:45:00 | H175: 00:00:00 | S175: 00:45:00 | T175: 00:00:00 | AC175: 0
A176: 10 | B176: So | C176: =C175+1 -> 2018-12-08 | D176: 09:00:00 | G176: 00:45:00 | H176: 00:00:00 | P176: 09:00:00 | Q176: - | R176: 12:45:00 | S176: 00:45:00 | T176: 03:45:00 | U176: 5 | W176: Seminarium 2 | X176: Dr W. Sroka | Y176: A211 | AB176: Dr W. Sroka | AC176: 5
A177: 10 | B177: So | C177: =C176 -> 2018-12-08 | D177: 13:15:00 | E177: - | F177: 15:30:00 | G177: 00:45:00 | H177: 02:15:00 | I177: 3 | K177: Formy opodatkowania małych przedsiębiorstw (W) | L177: Dr W. Sroka | M177: A211 | S177: 00:45:00 | T177: 00:00:00 | AB177: Dr W. Sroka | AC177: 3
A178: 10 | B178: So | C178: =C177 -> 2018-12-08 | D178: 15:45:00 | E178: - | F178: 19:30:00 | G178: 00:45:00 | H178: 03:45:00 | I178: 5 | K178: Zarządzanie dokumentacją przedsiębiorstwa (Lab. 1) | L178: Mgr B. Partyńska Bregowy | M178: C313 | S178: 00:45:00 | T178: 00:00:00 | AB178: Mgr B. Partyńska Bregowy | AC178: 5
A179: 10 | B179: So | C179: =C178 -> 2018-12-08 | G179: 00:45:00 | H179: 00:00:00 | S179: 00:45:00 | T179: 00:00:00 | AC179: 0
A180: 10 | B180: So | C180: =C179 -> 2018-12-08 | G180: 00:45:00 | H180: 00:00:00 | S180: 00:45:00 | T180: 00:00:00 | AC180: 0
A181: 10 | B181: Nd | C181: =C180+1 -> 2018-12-09 | D181: 09:00:00 | E181: =IF(I181<>0,"-","") -> - | F181: =IF(I181<>0,D181+H181,"") -> 12:00:00 | G181: 00:45:00 | H181: =G181*I181 -> 03:00:00 | I181: 4 | K181: System podatkowy (W) | L181: Dr K. Barwacz | M181: A211 | S181: 00:45:00 | T181: 00:00:00 | AB181: Dr K. Barwacz | AC181: 4
A182: 10 | B182: Nd | C182: =C181 -> 2018-12-09 | D182: 12:30:00 | E182: =IF(I182<>0,"-","") -> - | F182: =IF(I182<>0,D182+H182,"") -> 16:15:00 | G182: 00:45:00 | H182: =G182*I182 -> 03:45:00 | I182: 5 | K182: System podatkowy (Ćw.) | L182: Dr K. Barwacz | M182: A211 | S182: 00:45:00 | T182: 00:00:00 | AB182: Dr K. Barwacz | AC182: 5
A183: 10 | B183: Nd | C183: =C182 -> 2018-12-09 | G183: 00:45:00 | H183: 00:00:00 | S183: 00:45:00 | T183: 00:00:00 | AC183: 0
A184: 10 | B184: Nd | C184: =C183 -> 2018-12-09 | G184: 00:45:00 | H184: 00:00:00 | S184: 00:45:00 | T184: 00:00:00 | AC184: 0
A185: 10 | B185: Nd | C185: =C184 -> 2018-12-09 | G185: 00:45:00 | H185: 00:00:00 | S185: 00:45:00 | T185: 00:00:00 | AC185: 0
A186: 11 | B186: Pt | C186: 2018-12-14 | D186: 16:30:00 | E186: - | F186: 19:30:00 | G186: 00:45:00 | H186: 03:00:00 | I186: 4 | K186: Podstawy prawa (Ćw.) | L186: mgr K. Chmielarz | M186: A211 | S186: 00:45:00 | T186: 00:00:00 | AB186: mgr K. Chmielarz | AC186: 4
A187: =A186 -> 11 | B187: Pt | C187: =C186 -> 2018-12-14 | G187: 00:45:00 | H187: 00:00:00 | S187: 00:45:00 | T187: 00:00:00 | AC187: 0
A188: 11 | B188: Pt | C188: =C187 -> 2018-12-14 | G188: 00:45:00 | H188: 00:00:00 | S188: 00:45:00 | T188: 00:00:00 | AC188: 0
A189: 11 | B189: Pt | C189: =C188 -> 2018-12-14 | G189: 00:45:00 | H189: 00:00:00 | S189: 00:45:00 | T189: 00:00:00 | AC189: 0
A190: 11 | B190: Pt | C190: =C189 -> 2018-12-14 | G190: 00:45:00 | H190: 00:00:00 | S190: 00:45:00 | T190: 00:00:00 | AC190: 0
A191: 11 | B191: So | C191: =C190+1 -> 2018-12-15 | D191: 08:30:00 | E191: - | F191: 11:30:00 | G191: 00:45:00 | H191: 03:00:00 | I191: 4 | K191: Doradztwo (W) | L191: Mgr B. Partyńska Brzegowy | M191: A211 | S191: 00:45:00 | T191: 00:00:00 | AB191: Mgr B. Partyńska Brzegowy | AC191: 4
A192: 11 | B192: So | C192: =C191 -> 2018-12-15 | D192: 11:45:00 | E192: - | F192: 14:00:00 | G192: 00:45:00 | H192: 02:15:00 | I192: 3 | K192: Doradztwo (Ćw.) | L192: Mgr B. Partyńska Brzegowy | M192: A211 | S192: 00:45:00 | T192: 00:00:00 | AB192: Mgr B. Partyńska Brzegowy | AC192: 3
A193: 11 | B193: So | C193: =C192 -> 2018-12-15 | D193: 14:30:00 | E193: - | F193: 16:00:00 | G193: 00:45:00 | H193: 01:30:00 | I193: 2 | K193: Finanse przedsiębiorstw (W) | L193: Prof. K. Firlej | M193: A211 | S193: 00:45:00 | T193: 00:00:00 | AB193: Prof. K. Firlej | AC193: 2
A194: 11 | B194: So | C194: =C193 -> 2018-12-15 | D194: 16:15:00 | E194: - | F194: 19:15:00 | G194: 00:45:00 | H194: 03:00:00 | I194: 4 | K194: Finanse przedsiębiorstw (Lab. 1) | L194: Prof. K. Firlej | M194: C313 | S194: 00:45:00 | T194: 00:00:00 | AB194: Prof. K. Firlej | AC194: 4
A195: 11 | B195: So | C195: =C194 -> 2018-12-15 | G195: 00:45:00 | H195: 00:00:00 | S195: 00:45:00 | T195: 00:00:00 | AC195: 0
A196: 11 | B196: Nd | C196: =C195+1 -> 2018-12-16 | D196: 11:15:00 | E196: - | F196: 14:15:00 | G196: 00:45:00 | H196: 03:00:00 | I196: 4 | K196: Podstawy prawa (Ćw.) | L196: mgr K. Chmielarz | M196: A211 | S196: 00:45:00 | T196: 00:00:00 | AB196: mgr K. Chmielarz | AC196: 4
A197: 11 | B197: Nd | C197: =C196 -> 2018-12-16 | D197: 14:30:00 | E197: - | F197: 16:00:00 | G197: 00:45:00 | H197: 01:30:00 | I197: 2 | K197: Podstawy prawa (W) | L197: mgr K. Chmielarz | M197: A211 | S197: 00:45:00 | T197: 00:00:00 | AB197: mgr K. Chmielarz | AC197: 2
A198: 11 | B198: Nd | C198: =C197 -> 2018-12-16 | G198: 00:45:00 | H198: 00:00:00 | S198: 00:45:00 | T198: 00:00:00 | AC198: 0
A199: 11 | B199: Nd | C199: =C198 -> 2018-12-16 | G199: 00:45:00 | H199: 00:00:00 | S199: 00:45:00 | T199: 00:00:00 | AC199: 0
A200: 11 | B200: Nd | C200: =C199 -> 2018-12-16 | G200: 00:45:00 | H200: 00:00:00 | S200: 00:45:00 | T200: 00:00:00 | AC200: 0
... 60 more rows
